Workbook

Sheet Contents
C2: Contents
F3: Colour Codes | K3: File Name: | M3: =IFERROR(File_name(),"") -> C:\Users\edwar\OneDrive\Courses New\Chapter 5. Electricity\Chapter 5. Electricity\Renewable Energy\12. Batteries and Storage\Mini Grid Analysis\Mini Grid Analysis - LATEST.xlsm
C4: Illustration | G4: Inputs | I4: 1234567890
G5: Section Titles | I5: TITLE ROW | K5: Last Save Date | M5: =IFERROR(lastsaved(),"") -> 9/15/2021 6:48:52 AM
C6: Consumer Economics | G6: Sum Column | I6: 1000000000
G7: True or 1 | I7: =1=1 -> TRUE | K7: Last Save By | M7: =IFERROR(last_save_by(),"") -> Edward Bodmer
C8: Minigrid Control | G8: False or 0 | I8: =1=2 -> FALSE
D9: Demand Level and Demand Shape for Village | G9: Other Sheet Links | I9: |||||||||||||||||||
D10: Supply Options and Characteristics
D11: Distribution Parameters and Cost
C13: Demand Analysis
D14: Alternate Village Profiles
D15: End Uses for Alternative Household and Commercial Uses
D16: Transpose
D17: Graphs
D18: Annual Growth
D19: Total Quantity with Growth
C21: Hourly Load
D22: Load by Hour of Day
D23: Graphs
D24: Graphs
C26: Hydro
D27: Hydro Parameters
D28: Costs
D29: Notes
C31: Diesel
D32: Diesel Parameters
D33: Costs and Life
C35: Solar and Battery
D36: Alterantive Solar and Battery Costs
D37: Solar and Battery Parameters
C39: Solar Production
C41: Demand and Supply
D42: Parameters
D43: Chronological Analysis
D44: Re-Ordered Hourly Analysis Beginning with Charge
D45: Graphs
C47: Distribution
C49: Financing Assumptions
D50: Finance
C52: Financial Model
D53: Assumptions
D54: Financial Model
D55: Comparison with Kerosene Cost
C57: Kerosene
D58: Conversions
D59: Cost of Kerosene
C61: Sample Prices
C63: Backup

Sheet Illustration
B1: Consumer Load and Kerosene | H1: Mini Grid | L1: Mini Grid Costs | Q1: Annual Savings/Costs
B2: Demand Profile
B3: Daily Energy (kWh) | E3: ='Minigrid Control'!E9/1000 -> 127.27 | H3: Hydro Capacity (kW) | J3: =Hydro!F7 -> 0
B4: Maximum Load (kW) | E4: ='Minigrid Control'!E10/1000 -> 11.18 | H4: Diesel Capacity (kW) | J4: =Diesel!F7 -> 0
B5: Unserved Energy (kWh) | E5: ='Demand and Supply Dispatch'!E57 -> 7.890767167 | H5: Solar Capacity (kW) | J5: ='Solar and Battery'!E14 -> 29 | L5: Hydro/kW | O5: ='Minigrid Control'!$F$37 -> 3853
B6: Cost/Litre of Kerosene | E6: =Kerosene!F17 -> 1.115789474 | H6: Battery Capacity (kWh) | J6: ='Solar and Battery'!E17 -> 57 | L6: Solar Cost/kW | O6: =Solar_Cost -> 890 | Q6: Mini Grid Costs USD | T6: =J22 -> 3725.998494
L7: Battery Cost/kWh | O7: ='Solar and Battery'!E24 -> 130 | Q7: Mini Grid Costs FRW
B8: Annual Load Factor | E8: ='Consumer Economics'!K4 -> 0.4743217054 | H8: Solar Curve | L8: Diesel Cost/kW | O8: =Diesel!F19 -> 650
L9: Distribution Cost/m | O9: =Distribution!E26 -> 12.04945949 | Q9: Total Demand | T9: =E3365/1000 -> 0
Q10: Retail Cost/kWh w/o Subsidy | T10: =E22 -> 2583.316461
L12: Target IRR | O12: ='Financing Assumptions'!$F$4 -> 0.13 | Q12: Equivalent Kerosene Cost USD | T12: =T10-T6 -> -1142.682033
L13: Earned IRR | O13: ='Financial Model'!E135 -> 0.115635177 | Q13: Equivalent Kerosene Cost FRW
L15: Debt Funding Percent | Q15: Energy Direct Savings | T15: =T12/T10 -> -0.4423314177
L16: Tenure (Months)
L17: Funding Interest Rate | Q17: Percent Savings
L18: Credit Spread and Fees
Q19: Kerosene Pollution Cost
Q20: Kerosene Quality Cost
H21: Price/kWh Minigrid | J21: =Price -> 0.1542292441 | L21: Battery Efficiency | O21: =Round_Trip -> 0.95
B22: Imputed Kerosene Cost/yr | E22: ='Financial Model'!H145 -> 2583.316461 | H22: Total Cost per Year | J22: ='Financial Model'!H114 -> 3725.998494 | L22: Depth of Discharge | O22: ='Consumer Economics'!K23 -> 0.05 | Q22: Savings Including Other Cost
L23: Capital Cost | O23: ='Financial Model'!G132 -> 34578.42105
B24: Note: Some Uses Converted to Kerosene Equivalent

Sheet Consumer Economics
B3: Demand Profile | G3: Demand Profile
I4: Load Factor | K4: ='Financial Model'!F19 -> 0.4743217054 | N4: Cost of Solar and Batteries | S4: Cost Comparison
I5: Solar Capacity Factor | K5: =IFERROR('Financial Model'!F36,0) -> 0.2207025342 | N5: Solar | O5: Battery | P5: Hydro
M6: Capital Cost USD/kW | N6: ='Solar and Battery'!E23 -> 890 | O6: ='Solar and Battery'!E24 -> 130 | P6: =Illustration!O5 -> 3853
I7: Hydro Capacity (kW) | K7: =Illustration!J3 -> 0 | M7: Operating Cost USD/kWy | N7: ='Solar and Battery'!E27 -> 4 | O7: ='Solar and Battery'!E28 -> 0.1 | P7: =Hydro!F26 -> 10
I8: Diesel Capacity (kW) | K8: =Illustration!J4 -> 0
I9: Solar Capacity (kW) | K9: =Illustration!J5 -> 29 | M9: Capital Cost FRW/kW | N9: =N6*'Financial Model'!$F$13 -> 845500 | O9: =O6*'Financial Model'!$F$13 -> 123500
I10: Battery Capacity (kWh) | K10: =Illustration!J6 -> 57 | M10: Operating Cost FRW/kW | N10: =N7*'Financial Model'!$F$13 -> 3800 | O10: =O7*'Financial Model'!$F$13 -> 95
I12: Unserved Energy (kWh) | K12: =Illustration!E5 -> 7.890767167 | M12: Include Distribution
I13: Demand Met (kWh) | K13: =Illustration!E3 -> 127.27 | M13: Cost of Kerosene USD/L | N13: =Kerosene!F17 -> 1.115789474
I14: Wasted Renewable(kWh) | K14: ='Demand and Supply Dispatch'!E61 -> 34.22973094 | M14: Cost of Kerosene FRW/L | N14: =N13*'Financial Model'!F13 -> 1060
M15: IRR | N15: =Illustration!$O$13 -> 0.115635177
I16: Price/kWh of Minigrid | K16: =Price -> 0.1542292441
I18: Battery Life | K18: ='Financing Assumptions'!F5 -> 10
I19: Solar Life | K19: ='Financing Assumptions'!F6 -> 10
B20: ='Demand and Supply Dispatch'!B71 -> Demand | D20: kWh/Day | E20: =SUM('Demand and Supply Dispatch'!G71:AD71) -> 127.27 | I20: Target IRR | K20: ='Financing Assumptions'!$F$4 -> 0.13
B21: ='Demand and Supply Dispatch'!B72 -> Hydro Production | D21: kWh/Day | E21: =SUM('Demand and Supply Dispatch'!G72:AD72) -> 0
B22: ='Demand and Supply Dispatch'!B73 -> Solar Production | D22: kWh/Day | E22: =SUM('Demand and Supply Dispatch'!G73:AD73) -> 153.6089638 | I22: Round Trip Efficiency | K22: =Round_Trip -> 0.95
B23: ='Demand and Supply Dispatch'!B74 -> Diesel Production | D23: kWh/Day | E23: =SUM('Demand and Supply Dispatch'!G74:AD74) -> 0 | I23: Depth of Discharge | K23: =Depth_Discharge -> 0.05
B24: ='Demand and Supply Dispatch'!B75 -> Battery Discharge | D24: kWh/Day | E24: =SUM('Demand and Supply Dispatch'!G75:AD75) -> 57
I26: FALSE

Sheet Minigrid Control
A3: Demand Level and Demand Shape for Village
B5: Village Profile
B6: Year of Analysis
B7: Growth Rate | E7: ='Energy Demand'!E153 -> 0
B8: Hourly Distribution
B9: Daily Energy Demand | E9: ='End Uses'!J42 -> 127270
B10: Maximum Daily Load | E10: ='End Uses'!G43 -> 11180
B12: ='Energy Demand'!B11 -> Household 1 | E12: ='Energy Demand'!F11 -> 50
B13: ='Energy Demand'!B12 -> Household 2 | E13: ='Energy Demand'!F12 -> 50
B14: ='Energy Demand'!B13 -> Household 3 | E14: ='Energy Demand'!F13 -> 36
B15: ='Energy Demand'!B14 -> Street Lights | E15: ='Energy Demand'!F14 -> 0
B16: ='Energy Demand'!B15 -> Schools and colleges | E16: ='Energy Demand'!F15 -> 1
B17: ='Energy Demand'!B16 -> Health posts and clinics | E17: ='Energy Demand'!F16 -> 0
B18: ='Energy Demand'!B17 -> Church and mosque | E18: ='Energy Demand'!F17 -> 2
B19: ='Energy Demand'!B18 -> Agro processing mill | E19: ='Energy Demand'!F18 -> 0
B20: ='Energy Demand'!B19 -> Saw/Furniture mill | E20: ='Energy Demand'!F19 -> 0
B21: ='Energy Demand'!B20 -> Welding workshop | E21: ='Energy Demand'!F20 -> 2
B22: ='Energy Demand'!B21 -> Local financial institutions | E22: ='Energy Demand'!F21 -> 4
B23: ='Energy Demand'!B22 -> Hotels and restaurants | E23: ='Energy Demand'!F22 -> 5
B24: ='Energy Demand'!B23 -> Government and other offices | E24: ='Energy Demand'!F23 -> 1
A31: Generation Supply Options and Characteristics
B33: Supply - Hydro
C34: Include Hydro | E34: Flag | F34: FALSE
C35: Capacity (kW) | E35: kW | F35: =Hydro!F6 -> 6
C36: Hydro Capacity Applied | E36: kW | F36: =F34*F35 -> 0
C37: Cost/kW | E37: USD/kW | F37: =Hydro!F24 -> 3853
C38: O&M Cost/kWy | E38: USD/kWy | F38: =Hydro!F26 -> 10
C40: Head (meters) | E40: m | F40: =Hydro!$F$8 -> 33
C41: Production/Season | F41: 1 | G41: 2 | H41: 3 | I41: 4
F42: =TRANSPOSE(Hydro!J15:J18) -> Winter | G42: Spring | H42: Summer | I42: Autumn
C43: Flow Rate | E43: m3/sec | F43: =TRANSPOSE(Hydro!F15:F18) -> 0.095 | G43: 0.19 | H43: 0.09 | I43: 0.069
C44: Generation per Hour | E44: kW | F44: =TRANSPOSE(Hydro!I15:I18) -> 6 | G44: 6 | H44: 6 | I44: 6
C45: Capacity Factor | E45: % | F45: =IFERROR(F44/$F$35,0) -> 1 | G45: =IFERROR(G44/$F$35,0) -> 1 | H45: =IFERROR(H44/$F$35,0) -> 1 | I45: =IFERROR(I44/$F$35,0) -> 1
C46: Annual Capacity Factor | E46: % | F46: =AVERAGE(F45:I45) -> 1
B48: Supply - Solar and Battery
C49: Solar
D50: Include Solar | F50: TRUE
D51: Solar Capacity | E51: kW | F51: ='Solar and Battery'!E13 -> 29
D52: Applied Capacity | E52: kW | F52: =F51*F50 -> 29
D53: Solar Profiles
D54: Solar Daily Profiles
D55: Solar (Inverter) Cost/kW | E55: USD/kW | F55: =Solar_Cost -> 890
D56: Solar (Inverter) O&M Cost/kW | E56: USD/kWy | F56: =Solar_OM -> 4
C60: Battery
D61: Inclde Battery | F61: TRUE
D62: Battery Capacity | E62: kWh | F62: ='Solar and Battery'!E17 -> 57
D63: Round Trip Efficiecny | E63: % | F63: =Round_Trip -> 0.95
D64: Depth of Discharge | E64: % | F64: =Depth_Discharge -> 0.05
C67: Battery Capital Cost/kW | E67: USD/kW | F67: =Battery_Cost -> 130
C68: Battery O&M Cost/kW | E68: USD/kWy | F68: =Battery_OM -> 0.1
B72: Supply - Diesel
C73: Include Diesel | F73: FALSE
C74: Capacity | E74: kW | F74: =Diesel!F6 -> 10
C75: Cost/kW | E75: USD/kW | F75: =Diesel!$F$19 -> 650
C76: FixedO&M/kWy | E76: USD/kWy | F76: =Diesel!F21 -> 15
C78: Heat Rate | E78: l/MWH | F78: =Diesel!F8 -> 210
C79: Fuel Price | E79: USD/Litre | F79: =Diesel!F13 -> 1.145
C80: Fuel Cost | E80: USD/MWH | F80: =F78*F79 -> 240.45
A82: Distribution Parameters and Cost
B83: Meters | E83: m | F83: =Distribution!E18 -> 4451.32
B84: Cost/Meter | E84: USD/Meter | F84: =Distribution!E26 -> 12.04945949
B85: Apply Distribution in Analysis | E85: Flag | F85: FALSE
B86: Total Distribution Cost | F86: =F83*F84*F85 -> 0

Sheet Energy Demand
A1: Selection of Load Type to Drive Demand
I3: T1: Light + Mobile/Radio | M3: T2: T1 + TV | R3: T3: T2 + Home Appliances | AA3: Street litghts | AF3: Health posts and clinics | AI3: Church and mosque | AJ3: Productive Uses
C4: 1 | F4: =K52 -> 1 | AB4: Schools and colleges
A6: Alternate Village Profiles
F8: Applied | M8: Number of Units
F9: # of Units
C10: Code | F10: =INDEX(J10:R10,$C$4) -> 136 Households | H10: =INDEX(J10:S10,$C$4) -> 136 Households | J10: =J25&" Households "&J26 -> 136 Households | K10: =K25&" Households "&K26 -> 156 Households | L10: 2000 Households | M10: 6000 Households | N10: 1400 Households | O10: 1400 Households | P10: Saw mills | Q10: Households | R10: 2600 Households
B11: Household 1 | C11: 1 | D11: # of Units | F11: =INDEX(J11:R11,$C$4) -> 50 | H11: 50 | J11: 50 | K11: 20 | L11: 1400 | M11: 2000 | N11: 400 | O11: 400 | R11: 400
B12: Household 2 | C12: 2 | D12: # of Units | F12: 50 | H12: 50 | J12: 50 | K12: 100 | L12: 400 | M12: 2000 | N12: 300 | O12: 300 | R12: 800
B13: Household 3 | C13: 3 | D13: # of Units | F13: 36 | H13: 36 | J13: 36 | K13: 36 | L13: 200 | M13: 2000 | N13: 700 | O13: 700 | R13: 1400
B14: Street Lights | C14: 4 | D14: # of Units | F14: 0 | H14: 0 | J14: 0 | K14: 0 | L14: 20 | M14: 20 | N14: 20 | O14: 20 | R14: 60
B15: Schools and colleges | C15: 5 | D15: # of Units | F15: 1 | H15: 1 | J15: 1 | K15: 1 | L15: 5 | M15: 5 | N15: 7 | O15: 7 | R15: 7
B16: Health posts and clinics | C16: 6 | D16: # of Units | F16: 0 | H16: 0 | L16: 3 | M16: 7 | N16: 3 | O16: 3 | R16: 3
B17: Church and mosque | C17: 7 | D17: # of Units | F17: 2 | H17: 2 | J17: 2 | K17: 2 | L17: 1 | M17: 3 | N17: 3 | O17: 3 | R17: 3
B18: Agro processing mill | C18: 8 | D18: # of Units | F18: 0 | H18: 0 | L18: 10 | M18: 12 | N18: 6 | O18: 8 | R18: 8
B19: Saw/Furniture mill | C19: 9 | D19: # of Units | F19: 0 | H19: 0 | L19: 10 | M19: 15 | N19: 7 | O19: 10 | P19: 10 | R19: 10
B20: Welding workshop | C20: 10 | D20: # of Units | F20: 2 | H20: 2 | J20: 2 | K20: 1 | L20: 10 | M20: 5 | N20: 4 | O20: 9 | R20: 9
B21: Local financial institutions | C21: 11 | D21: # of Units | F21: 4 | H21: 4 | J21: 4 | K21: 6 | L21: 1 | M21: 15 | N21: 1 | O21: 4 | R21: 4
B22: Hotels and restaurants | C22: 12 | D22: # of Units | F22: 5 | H22: 5 | J22: 5 | K22: 8 | L22: 1 | M22: 10 | N22: 3 | O22: 5 | R22: 5
B23: Government and other offices | C23: 13 | D23: # of Units | F23: 1 | H23: 1 | J23: 1 | K23: 1 | L23: 4 | M23: 5 | N23: 2 | O23: 5 | R23: 5
B25: Total Households | F25: =INDEX(J25:R25,$C$4) -> 136 | H25: =INDEX(J25:S25,$C$4) -> 136 | J25: =SUM(J11:J13) -> 136 | K25: 156 | L25: 2000 | M25: 6000 | N25: 1400 | O25: 1400 | R25: =SUM(R11:R13) -> 2600
A28: End Uses for Alternative Household and Commercial Uses
I29: Load in Watts for Infividual Different End Uses
F31: Total Load (W) for One Unit | G31: Total Number of Units | H31: Total Load (W) for Units | I31: Bulb Living Room | J31: Bulb Kitchen | K31: Bulb Other Rooms | L31: Mobile/Radio Charger | M31: Bulb Living Room | N31: Bulb Kitchen | O31: Bulb Other Rooms | P31: Mobile Charger | Q31: TV | R31: Bulb Living Room | S31: Bulb Kitchen | T31: Bulb Other Rooms | U31: Smart Phone | V31: Radio/TV | W31: Fan/cooler | X31: Refrigerator | Y31: Iron | Z31: Cooking Appliance | AA31: Lights | AB31: Lights | AC31: Laptop and printer | AD31: Refrigerator | AE31: Multimedia projector | AF31: Lights | AG31: Refrigerator | AH31: Laptop and printer | AI31: Lights | AJ31: Agro processing mill | AK31: Saw/Furniture mill | AL31: Welding workshop | AM31: Local financial institutions | AN31: Hotels and restaurants | AO31: Government and other offices
B32: Household 1 | C32: 1 | D32: Load | E32: Watt | F32: =SUM(I32:AO32) -> 17 | G32: =F11 -> 50 | H32: =F32*G32 -> 850 | I32: 3 | J32: 3 | K32: 6 | L32: 5
B33: Household 2 | C33: 2 | D33: Load | E33: Watt | F33: =SUM(I33:AO33) -> 79 | G33: =F12 -> 50 | H33: =F33*G33 -> 3950 | M33: 5 | N33: 5 | O33: 9 | P33: 10 | Q33: 50
B34: Household 3 | C34: 3 | D34: Load | E34: Watt | F34: 2165 | G34: 36 | H34: 77940 | R34: 5 | S34: 5 | T34: 15 | U34: 10 | V34: 50 | W34: 30 | X34: 50 | Y34: 1000 | Z34: 1000
B35: Street Lights | C35: 4 | D35: Load | E35: Watt | F35: 75 | G35: 0 | H35: 0 | AA35: 75
B36: Schools and colleges | C36: 5 | D36: Load | E36: Watt | F36: 328 | G36: 1 | H36: 328 | AB36: 28 | AC36: 300 | AD36: 0 | AE36: 0
B37: Health posts and clinics | C37: 6 | D37: Load | E37: Watt | F37: 125 | G37: 0 | H37: 0 | AF37: 50 | AG37: 75 | AH37: 0
B38: Church and mosque | C38: 7 | D38: Load | E38: Watt | F38: 20 | G38: 2 | H38: 40 | AI38: 20
B39: Agro processing mill | C39: 8 | D39: Load | E39: Watt | F39: 1500 | G39: 0 | H39: 0 | AJ39: 1500
B40: Saw/Furniture mill | C40: 9 | D40: Load | E40: Watt | F40: 2500 | G40: 0 | H40: 0 | AK40: 2500
B41: Welding workshop | C41: 10 | D41: Load | E41: Watt | F41: 3000 | G41: 2 | H41: 6000 | AL41: 3000
B42: Local financial institutions | C42: 11 | D42: Load | E42: Watt | F42: 250 | G42: 4 | H42: 1000 | AM42: 250
B43: Hotels and restaurants | C43: 12 | D43: Load | E43: Watt | F43: 70 | G43: 5 | H43: 350 | AN43: 70
B44: Government and other offices | C44: 13 | D44: Load | E44: Watt | F44: 150 | G44: 1 | H44: 150 | AO44: 150
B46: Selected Transposed Profile to Next Sheet | I46: =SUMPRODUCT(I32:I44,$G$32:$G$44) -> 150 | J46: =SUMPRODUCT(J32:J44,$G$32:$G$44) -> 150 | K46: 300 | L46: 250 | M46: 250 | N46: 250 | O46: 450 | P46: 500 | Q46: 2500 | R46: 180 | S46: 180 | T46: 540 | U46: 360 | V46: 1800 | W46: 1080 | X46: 1800 | Y46: 36000 | Z46: 36000 | AA46: 0 | AB46: 28 | AC46: 300 | AD46: 0 | AE46: 0 | AF46: 0 | AG46: 0 | AH46: 0 | AI46: 40 | AJ46: 0 | AK46: 0 | AL46: 6000 | AM46: 1000 | AN46: 350 | AO46: 150
B47: Total Load for Single Unit Transposed | I47: =SUM(I32:I44) -> 3 | J47: =SUM(J32:J44) -> 3 | K47: 6 | L47: 5 | M47: 5 | N47: 5 | O47: 9 | P47: 10 | Q47: 50 | R47: 5 | S47: 5 | T47: 15 | U47: 10 | V47: 50 | W47: 30 | X47: 50 | Y47: 1000 | Z47: 1000 | AA47: 75 | AB47: 28 | AC47: 300 | AD47: 0 | AE47: 0 | AF47: 50 | AG47: 75 | AH47: 0 | AI47: 20 | AJ47: 1500 | AK47: 2500 | AL47: 3000 | AM47: 250 | AN47: 70 | AO47: 150
A51: Transpose
D52: =TRANSPOSE(H175:W175) -> 2020 | K52: 1 | L52: =INDEX(D52:D80,K52) -> 2020
D53: 2021
D54: 2022
D55: 2023
D56: 2024
D57: 2025
D58: 2026
D59: 2027
D60: 2028
D61: 2029
D62: 2030
D63: 2031
D64: 2032
D65: 2033
D66: 2034
D67: 2035
D84: =TRANSPOSE(J10:R10) -> 136 Households | L84: 5
D85: 156 Households
D86: 2000 Households
D87: 6000 Households
D88: 1400 Households
D89: 1400 Households
D90: Saw mills
A93: Graphs
C96: Load for One Unit
B97: =B32 -> Household 1 | C97: =F32 -> 17
B98: Household 2 | C98: 79
B99: Household 3 | C99: 2165
B100: Street Lights | C100: 75
B101: Schools and colleges | C101: 328
B102: Health posts and clinics | C102: 125
B103: Church and mosque | C103: 20
B104: Agro processing mill | C104: 1500
B105: Saw/Furniture mill | C105: 2500
B106: Welding workshop | C106: 3000
B107: Local financial institutions | C107: 250
B108: Hotels and restaurants | C108: 70
B109: Government and other offices | C109: 150
C113: Number of Units
B114: =B97 -> Household 1 | C114: =F11 -> 50
B115: =B98 -> Household 2 | C115: 50
B116: Household 3 | C116: 36
B117: Street Lights | C117: 0
B118: Schools and colleges | C118: 1
B119: Health posts and clinics | C119: 0
B120: Church and mosque | C120: 2
B121: Agro processing mill | C121: 0
B122: Saw/Furniture mill | C122: 0
B123: Welding workshop | C123: 2
B124: Local financial institutions | C124: 4
B125: Hotels and restaurants | C125: 5
B126: Government and other offices | C126: 1
C131: Total Max kW
B132: =B114 -> Household 1 | C132: =H32 -> 850
B133: =B115 -> Household 2 | C133: =H33 -> 3950
B134: Household 3 | C134: 77940
B135: Street Lights | C135: 0
B136: Schools and colleges | C136: 328
B137: Health posts and clinics | C137: 0
B138: Church and mosque | C138: 40
B139: Agro processing mill | C139: 0
B140: Saw/Furniture mill | C140: 0
B141: Welding workshop | C141: 6000
B142: Local financial institutions | C142: 1000
B143: Hotels and restaurants | C143: 350
B144: Government and other offices | C144: 150
A151: Annual Growth
C153: Growth Rate | E153: =G153/100 -> 0 | G153: 0
C155: Code | F155: Initial Quantity | I155: 2021 | J155: 2022 | K155: 2023 | L155: 2024 | M155: 2025 | N155: 2026 | O155: 2027 | P155: 2028 | Q155: 2029 | R155: 2030 | S155: 2031 | T155: 2032 | U155: 2033 | V155: 2034 | W155: 2035
B156: Household 1 | C156: 1 | D156: Capacity | E156: Watt | F156: =F32 -> 17 | I156: =$E$153 -> 0 | J156: 0 | K156: 0 | L156: 0 | M156: 0 | N156: 0 | O156: 0 | P156: 0 | Q156: 0 | R156: 0 | S156: 0 | T156: 0 | U156: 0 | V156: 0 | W156: 0
B157: Household 2 | C157: 2 | D157: Capacity | E157: Watt | F157: 79 | I157: =I156 -> 0 | J157: =J156 -> 0 | K157: 0 | L157: 0 | M157: 0 | N157: 0 | O157: 0 | P157: 0 | Q157: 0 | R157: 0 | S157: 0 | T157: 0 | U157: 0 | V157: 0 | W157: 0
B158: Household 3 | C158: 3 | D158: Capacity | E158: Watt | F158: 2165 | I158: =I157 -> 0 | J158: 0 | K158: 0 | L158: 0 | M158: 0 | N158: 0 | O158: 0 | P158: 0 | Q158: 0 | R158: 0 | S158: 0 | T158: 0 | U158: 0 | V158: 0 | W158: 0
B159: Street Lights | C159: 4 | D159: Capacity | E159: Watt | F159: 75 | I159: 0 | J159: 0 | K159: 0 | L159: 0 | M159: 0 | N159: 0 | O159: 0 | P159: 0 | Q159: 0 | R159: 0 | S159: 0 | T159: 0 | U159: 0 | V159: 0 | W159: 0
B160: Schools and colleges | C160: 5 | D160: Capacity | E160: Watt | F160: 328 | I160: 0 | J160: 0 | K160: 0 | L160: 0 | M160: 0 | N160: 0 | O160: 0 | P160: 0 | Q160: 0 | R160: 0 | S160: 0 | T160: 0 | U160: 0 | V160: 0 | W160: 0
B161: Health posts and clinics | C161: 6 | D161: Capacity | E161: Watt | F161: 125 | I161: 0 | J161: 0 | K161: 0 | L161: 0 | M161: 0 | N161: 0 | O161: 0 | P161: 0 | Q161: 0 | R161: 0 | S161: 0 | T161: 0 | U161: 0 | V161: 0 | W161: 0
B162: Church and mosque | C162: 7 | D162: Capacity | E162: Watt | F162: 20 | I162: 0 | J162: 0 | K162: 0 | L162: 0 | M162: 0 | N162: 0 | O162: 0 | P162: 0 | Q162: 0 | R162: 0 | S162: 0 | T162: 0 | U162: 0 | V162: 0 | W162: 0
B163: Agro processing mill | C163: 8 | D163: Capacity | E163: Watt | F163: 1500 | I163: 0 | J163: 0 | K163: 0 | L163: 0 | M163: 0 | N163: 0 | O163: 0 | P163: 0 | Q163: 0 | R163: 0 | S163: 0 | T163: 0 | U163: 0 | V163: 0 | W163: 0
B164: Saw/Furniture mill | C164: 9 | D164: Capacity | E164: Watt | F164: 2500 | I164: 0 | J164: 0 | K164: 0 | L164: 0 | M164: 0 | N164: 0 | O164: 0 | P164: 0 | Q164: 0 | R164: 0 | S164: 0 | T164: 0 | U164: 0 | V164: 0 | W164: 0
B165: Welding workshop | C165: 10 | D165: Capacity | E165: Watt | F165: 3000 | I165: 0 | J165: 0 | K165: 0 | L165: 0 | M165: 0 | N165: 0 | O165: 0 | P165: 0 | Q165: 0 | R165: 0 | S165: 0 | T165: 0 | U165: 0 | V165: 0 | W165: 0
B166: Local financial institutions | C166: 11 | D166: Capacity | E166: Watt | F166: 250 | I166: 0 | J166: 0 | K166: 0 | L166: 0 | M166: 0 | N166: 0 | O166: 0 | P166: 0 | Q166: 0 | R166: 0 | S166: 0 | T166: 0 | U166: 0 | V166: 0 | W166: 0
B167: Hotels and restaurants | C167: 12 | D167: Capacity | E167: Watt | F167: 70 | I167: 0 | J167: 0 | K167: 0 | L167: 0 | M167: 0 | N167: 0 | O167: 0 | P167: 0 | Q167: 0 | R167: 0 | S167: 0 | T167: 0 | U167: 0 | V167: 0 | W167: 0
B168: Government and other offices | C168: 13 | D168: Capacity | E168: Watt | F168: 150 | I168: 0 | J168: 0 | K168: 0 | L168: 0 | M168: 0 | N168: 0 | O168: 0 | P168: 0 | Q168: 0 | R168: 0 | S168: 0 | T168: 0 | U168: 0 | V168: 0 | W168: 0
A173: Total Quantity with Growth
C175: Code | F175: Initial Quantity | H175: 2020 | I175: =H175+1 -> 2021 | J175: =I175+1 -> 2022 | K175: 2023 | L175: 2024 | M175: 2025 | N175: 2026 | O175: 2027 | P175: 2028 | Q175: 2029 | R175: 2030 | S175: 2031 | T175: 2032 | U175: 2033 | V175: 2034 | W175: 2035
B176: Household 1 | C176: 1 | D176: Capacity | E176: Watt | F176: =F11 -> 50 | H176: =F176 -> 50 | I176: =H176*(1+I156) -> 50 | J176: 50 | K176: 50 | L176: 50 | M176: 50 | N176: 50 | O176: 50 | P176: 50 | Q176: 50 | R176: 50 | S176: 50 | T176: 50 | U176: 50 | V176: 50 | W176: 50
B177: Household 2 | C177: 2 | D177: Capacity | E177: Watt | F177: 50 | H177: 50 | I177: =H177*(1+I157) -> 50 | J177: 50 | K177: 50 | L177: 50 | M177: 50 | N177: 50 | O177: 50 | P177: 50 | Q177: 50 | R177: 50 | S177: 50 | T177: 50 | U177: 50 | V177: 50 | W177: 50
B178: Household 3 | C178: 3 | D178: Capacity | E178: Watt | F178: 36 | H178: 36 | I178: =H178*(1+I158) -> 36 | J178: 36 | K178: 36 | L178: 36 | M178: 36 | N178: 36 | O178: 36 | P178: 36 | Q178: 36 | R178: 36 | S178: 36 | T178: 36 | U178: 36 | V178: 36 | W178: 36
B179: Street Lights | C179: 4 | D179: Capacity | E179: Watt | F179: 0 | H179: 0 | I179: =H179*(1+I159) -> 0 | J179: 0 | K179: 0 | L179: 0 | M179: 0 | N179: 0 | O179: 0 | P179: 0 | Q179: 0 | R179: 0 | S179: 0 | T179: 0 | U179: 0 | V179: 0 | W179: 0
B180: Schools and colleges | C180: 5 | D180: Capacity | E180: Watt | F180: 1 | H180: 1 | I180: =H180*(1+I160) -> 1 | J180: 1 | K180: 1 | L180: 1 | M180: 1 | N180: 1 | O180: 1 | P180: 1 | Q180: 1 | R180: 1 | S180: 1 | T180: 1 | U180: 1 | V180: 1 | W180: 1
B181: Health posts and clinics | C181: 6 | D181: Capacity | E181: Watt | F181: 0 | H181: 0 | I181: =H181*(1+I161) -> 0 | J181: 0 | K181: 0 | L181: 0 | M181: 0 | N181: 0 | O181: 0 | P181: 0 | Q181: 0 | R181: 0 | S181: 0 | T181: 0 | U181: 0 | V181: 0 | W181: 0
B182: Church and mosque | C182: 7 | D182: Capacity | E182: Watt | F182: 2 | H182: 2 | I182: =H182*(1+I162) -> 2 | J182: 2 | K182: 2 | L182: 2 | M182: 2 | N182: 2 | O182: 2 | P182: 2 | Q182: 2 | R182: 2 | S182: 2 | T182: 2 | U182: 2 | V182: 2 | W182: 2
B183: Agro processing mill | C183: 8 | D183: Capacity | E183: Watt | F183: 0 | H183: 0 | I183: =H183*(1+I163) -> 0 | J183: 0 | K183: 0 | L183: 0 | M183: 0 | N183: 0 | O183: 0 | P183: 0 | Q183: 0 | R183: 0 | S183: 0 | T183: 0 | U183: 0 | V183: 0 | W183: 0
B184: Saw/Furniture mill | C184: 9 | D184: Capacity | E184: Watt | F184: 0 | H184: 0 | I184: =H184*(1+I164) -> 0 | J184: 0 | K184: 0 | L184: 0 | M184: 0 | N184: 0 | O184: 0 | P184: 0 | Q184: 0 | R184: 0 | S184: 0 | T184: 0 | U184: 0 | V184: 0 | W184: 0
B185: Welding workshop | C185: 10 | D185: Capacity | E185: Watt | F185: 2 | H185: 2 | I185: =H185*(1+I165) -> 2 | J185: 2 | K185: 2 | L185: 2 | M185: 2 | N185: 2 | O185: 2 | P185: 2 | Q185: 2 | R185: 2 | S185: 2 | T185: 2 | U185: 2 | V185: 2 | W185: 2
B186: Local financial institutions | C186: 11 | D186: Capacity | E186: Watt | F186: 4 | H186: 4 | I186: =H186*(1+I166) -> 4 | J186: 4 | K186: 4 | L186: 4 | M186: 4 | N186: 4 | O186: 4 | P186: 4 | Q186: 4 | R186: 4 | S186: 4 | T186: 4 | U186: 4 | V186: 4 | W186: 4
B187: Hotels and restaurants | C187: 12 | D187: Capacity | E187: Watt | F187: 5 | H187: 5 | I187: =H187*(1+I167) -> 5 | J187: 5 | K187: 5 | L187: 5 | M187: 5 | N187: 5 | O187: 5 | P187: 5 | Q187: 5 | R187: 5 | S187: 5 | T187: 5 | U187: 5 | V187: 5 | W187: 5
B188: Government and other offices | C188: 13 | D188: Capacity | E188: Watt | F188: 1 | H188: 1 | I188: =H188*(1+I168) -> 1 | J188: 1 | K188: 1 | L188: 1 | M188: 1 | N188: 1 | O188: 1 | P188: 1 | Q188: 1 | R188: 1 | S188: 1 | T188: 1 | U188: 1 | V188: 1 | W188: 1

Sheet End Uses
A1: Demand Selection
L2: kwh=kw x hour
Q3: Percent of Hour
A4: Load by Hour of Day
H5: Load in Watt | I5: Hours of | J5: Watthour | K5: Watt Capacity | L5: Watthour | M5: 0 | N5: 1 | O5: 2 | P5: 3 | Q5: 4 | R5: 5 | S5: 6 | T5: 7 | U5: 8 | V5: 9 | W5: 10 | X5: 11 | Y5: 12 | Z5: 13 | AA5: 14 | AB5: 15 | AC5: 16 | AD5: 17 | AE5: 18 | AF5: 19 | AG5: 20 | AH5: 21 | AI5: 22 | AJ5: 23
H6: Units x Watts | I6: Full Load | J6: for All Units | K6: for Single Unit | L6: for Single Unit
C7: ='Energy Demand'!B32 -> Household 1 | D7: T1: Light + Mobile/Radio | E7: Bulb Living Room | H7: =TRANSPOSE('Energy Demand'!I46:AO46) -> 150 | I7: =SUM(M7:AJ7) -> 4 | J7: =H7*I7 -> 600 | K7: =TRANSPOSE('Energy Demand'!I47:AO47) -> 3 | L7: =K7*I7 -> 12 | M7: 0 | N7: 0 | O7: 0 | P7: 0 | Q7: 0 | R7: 1 | S7: 0 | T7: 0 | U7: 0 | V7: 0 | W7: 0 | X7: 0 | Y7: 0 | Z7: 0 | AA7: 0 | AB7: 0 | AC7: 0 | AD7: 0 | AE7: 1 | AF7: 1 | AG7: 1 | AH7: 0 | AI7: 0 | AJ7: 0
C8: =C7 -> Household 1 | E8: Bulb Kitchen | H8: 150 | I8: 2 | J8: =H8*I8 -> 300 | K8: 3 | L8: =K8*I8 -> 6 | M8: 0 | N8: 0 | O8: 0 | P8: 0 | Q8: 0 | R8: 0 | S8: 0 | T8: 0 | U8: 0 | V8: 0 | W8: 0 | X8: 0 | Y8: 0 | Z8: 0 | AA8: 0 | AB8: 0 | AC8: 0 | AD8: 0 | AE8: 0.6666666667 | AF8: 0.6666666667 | AG8: 0.6666666667 | AH8: 0 | AI8: 0 | AJ8: 0
C9: =C8 -> Household 1 | E9: Bulb Other Rooms | H9: 300 | I9: 5 | J9: 1500 | K9: 6 | L9: 30 | M9: 0.2857142857 | N9: 0.2857142857 | O9: 0.2857142857 | P9: 0.2857142857 | Q9: 0.5 | R9: 0.5 | S9: 0 | T9: 0 | U9: 0 | V9: 0 | W9: 0 | X9: 0 | Y9: 0 | Z9: 0 | AA9: 0 | AB9: 0 | AC9: 0 | AD9: 0 | AE9: 0.6666666667 | AF9: 0.6666666667 | AG9: 0.6666666667 | AH9: 0.2857142857 | AI9: 0.2857142857 | AJ9: 0.2857142857
C10: =C9 -> Household 1 | E10: Mobile/Radio Charger | H10: 250 | I10: 8 | J10: 2000 | K10: 5 | L10: 40 | M10: 0.2857142857 | N10: 0.2857142857 | O10: 0.2857142857 | P10: 0.2857142857 | Q10: 0 | R10: 0 | S10: 1 | T10: 1 | U10: 0 | V10: 0 | W10: 1 | X10: 1 | Y10: 0 | Z10: 0 | AA10: 1 | AB10: 1 | AC10: 0 | AD10: 0 | AE10: 0 | AF10: 0 | AG10: 0 | AH10: 0.2857142857 | AI10: 0.2857142857 | AJ10: 0.2857142857
C11: ='Energy Demand'!B33 -> Household 2 | D11: T2: T1 + TV | E11: Bulb Living Room | H11: 250 | I11: 4 | J11: 1000 | K11: 5 | L11: 20 | M11: 0 | N11: 0 | O11: 0 | P11: 0 | Q11: 0.5 | R11: 0.5 | S11: 0 | T11: 0 | U11: 0 | V11: 0 | W11: 0 | X11: 0 | Y11: 0 | Z11: 0 | AA11: 0 | AB11: 0 | AC11: 0 | AD11: 0 | AE11: 1 | AF11: 1 | AG11: 1 | AH11: 0 | AI11: 0 | AJ11: 0
C12: =C11 -> Household 2 | E12: Bulb Kitchen | H12: 250 | I12: 2 | J12: 500 | K12: 5 | L12: 10 | M12: 0 | N12: 0 | O12: 0 | P12: 0 | Q12: 0 | R12: 0 | S12: 0 | T12: 0 | U12: 0 | V12: 0 | W12: 0 | X12: 0 | Y12: 0 | Z12: 0 | AA12: 0 | AB12: 0 | AC12: 0 | AD12: 0 | AE12: 0.6666666667 | AF12: 0.6666666667 | AG12: 0.6666666667 | AH12: 0 | AI12: 0 | AJ12: 0
C13: =C12 -> Household 2 | E13: Bulb Other Rooms | H13: 450 | I13: 5 | J13: 2250 | K13: 9 | L13: 45 | M13: 0.2857142857 | N13: 0.2857142857 | O13: 0.2857142857 | P13: 0.2857142857 | Q13: 0.5 | R13: 0.5 | S13: 0 | T13: 0 | U13: 0 | V13: 0 | W13: 0 | X13: 0 | Y13: 0 | Z13: 0 | AA13: 0 | AB13: 0 | AC13: 0 | AD13: 0 | AE13: 0.6666666667 | AF13: 0.6666666667 | AG13: 0.6666666667 | AH13: 0.2857142857 | AI13: 0.2857142857 | AJ13: 0.2857142857
C14: =C13 -> Household 2 | E14: Mobile Charger | H14: 500 | I14: 5 | J14: 2500 | K14: 10 | L14: 50 | M14: 0 | N14: 0 | O14: 0 | P14: 0 | Q14: 0 | R14: 0 | S14: 1 | T14: 1 | U14: 0 | V14: 0 | W14: 1 | X14: 1 | Y14: 0 | Z14: 0 | AA14: 0 | AB14: 0 | AC14: 0.5 | AD14: 0.5 | AE14: 0 | AF14: 0 | AG14: 0 | AH14: 0 | AI14: 0 | AJ14: 0
C15: =C14 -> Household 2 | E15: TV | H15: 2500 | I15: 7 | J15: 17500 | K15: 50 | L15: 350 | M15: 0.1428571429 | N15: 0.1428571429 | O15: 0.1428571429 | P15: 0.1428571429 | Q15: 0 | R15: 0 | S15: 0.5 | T15: 0.5 | U15: 0.5 | V15: 0.5 | W15: 0 | X15: 0 | Y15: 0 | Z15: 0 | AA15: 0 | AB15: 0 | AC15: 1 | AD15: 1 | AE15: 0.6666666667 | AF15: 0.6666666667 | AG15: 0.6666666667 | AH15: 0.1428571429 | AI15: 0.1428571429 | AJ15: 0.1428571429
C16: ='Energy Demand'!B34 -> Household 3 | D16: T3: T2 + Home Appliances | E16: Bulb Living Room | H16: 180 | I16: 6 | J16: 1080 | K16: 5 | L16: 30 | M16: 0.1428571429 | N16: 0.1428571429 | O16: 0.1428571429 | P16: 0.1428571429 | Q16: 1 | R16: 1 | S16: 0 | T16: 0 | U16: 0 | V16: 0 | W16: 0 | X16: 0 | Y16: 0 | Z16: 0 | AA16: 0 | AB16: 0 | AC16: 0 | AD16: 0 | AE16: 1 | AF16: 1 | AG16: 1 | AH16: 0.1428571429 | AI16: 0.1428571429 | AJ16: 0.1428571429
C17: =C16 -> Household 3 | E17: Bulb Kitchen | H17: 180 | I17: 2 | J17: 360 | K17: 5 | L17: 10 | M17: 0 | N17: 0 | O17: 0 | P17: 0 | Q17: 0 | R17: 0 | S17: 0 | T17: 0 | U17: 0 | V17: 0 | W17: 0 | X17: 0 | Y17: 0 | Z17: 0 | AA17: 0 | AB17: 0 | AC17: 0 | AD17: 0 | AE17: 0.6666666667 | AF17: 0.6666666667 | AG17: 0.6666666667 | AH17: 0 | AI17: 0 | AJ17: 0
C18: =C17 -> Household 3 | E18: Bulb Other Rooms | H18: 540 | I18: 5 | J18: 2700 | K18: 15 | L18: 75 | M18: 0.2857142857 | N18: 0.2857142857 | O18: 0.2857142857 | P18: 0.2857142857 | Q18: 0 | R18: 1 | S18: 0 | T18: 0 | U18: 0 | V18: 0 | W18: 0 | X18: 0 | Y18: 0 | Z18: 0 | AA18: 0 | AB18: 0 | AC18: 0 | AD18: 0 | AE18: 0.6666666667 | AF18: 0.6666666667 | AG18: 0.6666666667 | AH18: 0.2857142857 | AI18: 0.2857142857 | AJ18: 0.2857142857
C19: Household 3 | E19: Smart Phone | H19: 360 | I19: 6 | J19: 2160 | K19: 10 | L19: 60 | M19: 0.2857142857 | N19: 0.2857142857 | O19: 0.2857142857 | P19: 0.2857142857 | Q19: 0 | R19: 0 | S19: 0.5 | T19: 0.5 | U19: 0 | V19: 0 | W19: 0.5 | X19: 0.5 | Y19: 0 | Z19: 0 | AA19: 0 | AB19: 0 | AC19: 0 | AD19: 0 | AE19: 0.6666666667 | AF19: 0.6666666667 | AG19: 0.6666666667 | AH19: 0.2857142857 | AI19: 0.2857142857 | AJ19: 0.2857142857
C20: Household 3 | E20: Radio/TV | H20: 1800 | I20: 6 | J20: 10800 | K20: 50 | L20: 300 | M20: 0.1428571429 | N20: 0.1428571429 | O20: 0.1428571429 | P20: 0.1428571429 | Q20: 0 | R20: 0 | S20: 0.5 | T20: 0.5 | U20: 0.5 | V20: 0.5 | W20: 0.5 | X20: 0.5 | Y20: 0 | Z20: 0 | AA20: 0 | AB20: 0 | AC20: 0 | AD20: 0 | AE20: 0.6666666667 | AF20: 0.6666666667 | AG20: 0.6666666667 | AH20: 0.1428571429 | AI20: 0.1428571429 | AJ20: 0.1428571429
C21: Household 3 | E21: Fan/cooler | H21: 1080 | I21: 5 | J21: 5400 | K21: 30 | L21: 150 | M21: 0.1428571429 | N21: 0.1428571429 | O21: 0.1428571429 | P21: 0.1428571429 | Q21: 0 | R21: 0 | S21: 0 | T21: 0 | U21: 0 | V21: 0 | W21: 0.5 | X21: 0.5 | Y21: 0.5 | Z21: 0.5 | AA21: 0 | AB21: 0 | AC21: 0 | AD21: 0 | AE21: 0.6666666667 | AF21: 0.6666666667 | AG21: 0.6666666667 | AH21: 0.1428571429 | AI21: 0.1428571429 | AJ21: 0.1428571429
C22: Household 3 | E22: Refrigerator | H22: 1800 | I22: 10 | J22: 18000 | K22: 50 | L22: 500 | M22: 0 | N22: 0 | O22: 0 | P22: 0 | Q22: 0 | R22: 0 | S22: 0 | T22: 0 | U22: 0.5 | V22: 0.5 | W22: 1 | X22: 1 | Y22: 1 | Z22: 1 | AA22: 0.5 | AB22: 0.5 | AC22: 1 | AD22: 1 | AE22: 0.6666666667 | AF22: 0.6666666667 | AG22: 0.6666666667 | AH22: 0 | AI22: 0 | AJ22: 0
C23: Household 3 | E23: Iron | H23: 36000 | I23: 0.2 | J23: 7200 | K23: 1000 | L23: 200 | M23: 0 | N23: 0 | O23: 0 | P23: 0 | Q23: 0 | R23: 0 | S23: 0.1 | T23: 0.1 | U23: 0 | V23: 0 | W23: 0 | X23: 0 | Y23: 0 | Z23: 0 | AA23: 0 | AB23: 0 | AC23: 0 | AD23: 0 | AE23: 0 | AF23: 0 | AG23: 0 | AH23: 0 | AI23: 0 | AJ23: 0
C24: Household 3 | E24: Cooking Appliance | H24: 36000 | I24: 0.5 | J24: 18000 | K24: 1000 | L24: 500 | M24: 0 | N24: 0 | O24: 0 | P24: 0 | Q24: 0 | R24: 0 | S24: 0.125 | T24: 0.125 | U24: 0 | V24: 0 | W24: 0 | X24: 0 | Y24: 0 | Z24: 0 | AA24: 0 | AB24: 0 | AC24: 0 | AD24: 0 | AE24: 0.08333333333 | AF24: 0.08333333333 | AG24: 0.08333333333 | AH24: 0 | AI24: 0 | AJ24: 0
C25: ='Energy Demand'!B35 -> Street Lights | D25: Street litghts | E25: Lights | H25: 0 | I25: 8 | J25: 0 | K25: 75 | L25: 600 | M25: 0.4285714286 | N25: 0.4285714286 | O25: 0.4285714286 | P25: 0.4285714286 | Q25: 1 | R25: 1 | S25: 0 | T25: 0 | U25: 0 | V25: 0 | W25: 0 | X25: 0 | Y25: 0 | Z25: 0 | AA25: 0 | AB25: 0 | AC25: 0 | AD25: 0 | AE25: 1 | AF25: 1 | AG25: 1 | AH25: 0.4285714286 | AI25: 0.4285714286 | AJ25: 0.4285714286
C26: Schools and colleges | D26: Schools and colleges | E26: Lights | H26: 28 | I26: 5 | J26: 140 | K26: 28 | L26: 140 | M26: 0 | N26: 0 | O26: 0 | P26: 0 | Q26: 0 | R26: 0 | S26: 0 | T26: 0 | W26: 0.5 | X26: 0.5 | Y26: 0.5 | Z26: 0.5 | AA26: 0.5 | AB26: 0.5 | AC26: 0.5 | AD26: 0.5 | AE26: 0.3333333333 | AF26: 0.3333333333 | AG26: 0.3333333333 | AH26: 0 | AI26: 0 | AJ26: 0
C27: =C26 -> Schools and colleges | E27: Laptop and printer | H27: 300 | I27: 9 | J27: 2700 | K27: 300 | L27: 2700 | M27: 0 | N27: 0 | O27: 0 | P27: 0 | Q27: 0 | R27: 0 | S27: 0 | T27: 0 | U27: 1 | V27: 1 | W27: 1 | X27: 1 | Y27: 1 | Z27: 1 | AA27: 1 | AB27: 1 | AC27: 0.5 | AD27: 0.5 | AE27: 0 | AF27: 0 | AG27: 0 | AH27: 0 | AI27: 0 | AJ27: 0
C28: =C27 -> Schools and colleges | E28: Refrigerator | H28: 0 | I28: 0 | J28: 0 | K28: 0 | L28: 0 | M28: 0 | N28: 0 | O28: 0 | P28: 0 | Q28: 0 | R28: 0 | S28: 0 | T28: 0 | U28: 0 | V28: 0 | W28: 0 | X28: 0 | Y28: 0 | Z28: 0 | AA28: 0 | AB28: 0 | AC28: 0 | AD28: 0 | AE28: 0 | AF28: 0 | AG28: 0 | AH28: 0 | AI28: 0 | AJ28: 0
C29: =C28 -> Schools and colleges | E29: Multimedia projector | H29: 0 | I29: 0 | J29: 0 | K29: 0 | L29: 0 | M29: 0 | N29: 0 | O29: 0 | P29: 0 | Q29: 0 | R29: 0 | S29: 0 | T29: 0 | U29: 0 | V29: 0 | W29: 0 | X29: 0 | Y29: 0 | Z29: 0 | AA29: 0 | AB29: 0 | AC29: 0 | AD29: 0 | AE29: 0 | AF29: 0 | AG29: 0 | AH29: 0 | AI29: 0 | AJ29: 0
C30: Health posts and clinics | D30: Health posts and clinics | E30: Lights | H30: 0 | I30: 3 | J30: 0 | K30: 50 | L30: 150 | M30: 0 | N30: 0 | O30: 0 | P30: 0 | Q30: 0 | R30: 1 | S30: 0 | T30: 0 | U30: 0 | V30: 0 | W30: 0 | X30: 0 | Y30: 0 | Z30: 0 | AA30: 0 | AB30: 0 | AC30: 0 | AD30: 0 | AE30: 0.6666666667 | AF30: 0.6666666667 | AG30: 0.6666666667 | AH30: 0 | AI30: 0 | AJ30: 0
C31: =C30 -> Health posts and clinics | E31: Refrigerator | H31: 0 | I31: 24 | J31: 0 | K31: 75 | L31: 1800 | M31: 1 | N31: 1 | O31: 1 | P31: 1 | Q31: 1 | R31: 1 | S31: 1 | T31: 1 | U31: 1 | V31: 1 | W31: 1 | X31: 1 | Y31: 1 | Z31: 1 | AA31: 1 | AB31: 1 | AC31: 1 | AD31: 1 | AE31: 1 | AF31: 1 | AG31: 1 | AH31: 1 | AI31: 1 | AJ31: 1
C32: =C31 -> Health posts and clinics | E32: Laptop and printer | H32: 0 | I32: 0.5 | J32: 0 | K32: 0 | L32: 0 | M32: 0 | N32: 0 | O32: 0 | P32: 0 | Q32: 0 | R32: 0 | S32: 0 | T32: 0 | U32: 0 | V32: 0 | W32: 0 | X32: 0 | Y32: 0 | Z32: 0 | AA32: 0 | AB32: 0 | AC32: 0.25 | AD32: 0.25 | AE32: 0 | AF32: 0 | AG32: 0 | AH32: 0 | AI32: 0 | AJ32: 0
C33: Church and mosque | D33: Church and mosque | E33: Lights | H33: 40 | I33: 12 | J33: 480 | K33: 20 | L33: 240 | M33: 1 | N33: 1 | O33: 1 | P33: 1 | Q33: 1 | R33: 1 | S33: 0 | T33: 0 | U33: 0 | V33: 0 | W33: 0 | X33: 0 | Y33: 0 | Z33: 0 | AA33: 0 | AB33: 0 | AC33: 0 | AD33: 0 | AE33: 1 | AF33: 1 | AG33: 1 | AH33: 1 | AI33: 1 | AJ33: 1
C34: Agro processing mill | D34: Productive Uses | E34: Agro processing mill | H34: 0 | I34: 3.5 | J34: 0 | K34: 1500 | L34: 5250 | M34: 0 | N34: 0 | O34: 0 | P34: 0 | Q34: 0 | R34: 0 | S34: 0 | T34: 0 | U34: 0.5 | V34: 0.5 | W34: 0.5 | X34: 0.5 | Y34: 0.5 | Z34: 0.5 | AA34: 0.25 | AB34: 0.25 | AC34: 0 | AD34: 0 | AE34: 0 | AF34: 0 | AG34: 0 | AH34: 0 | AI34: 0 | AJ34: 0
C35: Saw/Furniture mill | E35: Saw/Furniture mill | H35: 0 | I35: 24 | J35: 0 | K35: 2500 | L35: 60000 | M35: 1 | N35: 1 | O35: 1 | P35: 1 | Q35: 1 | R35: 1 | S35: 1 | T35: 1 | U35: 1 | V35: 1 | W35: 1 | X35: 1 | Y35: 1 | Z35: 1 | AA35: 1 | AB35: 1 | AC35: 1 | AD35: 1 | AE35: 1 | AF35: 1 | AG35: 1 | AH35: 1 | AI35: 1 | AJ35: 1
C36: Welding workshop | E36: Welding workshop | H36: 6000 | I36: 3 | J36: 18000 | K36: 3000 | L36: 9000 | M36: 0 | N36: 0 | O36: 0 | P36: 0 | Q36: 0 | R36: 0 | S36: 0 | T36: 0 | U36: 0 | V36: 0 | W36: 0.5 | X36: 0.5 | Y36: 0.5 | Z36: 0.5 | AA36: 0.5 | AB36: 0.5 | AC36: 0 | AD36: 0 | AE36: 0 | AF36: 0 | AG36: 0 | AH36: 0 | AI36: 0 | AJ36: 0
C37: Local financial institutions | E37: Local financial institutions | H37: 1000 | I37: 9 | J37: 9000 | K37: 250 | L37: 2250 | M37: 0 | N37: 0 | O37: 0 | P37: 0 | Q37: 0 | R37: 0 | S37: 0 | T37: 0 | U37: 0.5 | V37: 0.5 | W37: 1 | X37: 1 | Y37: 1 | Z37: 1 | AA37: 1 | AB37: 1 | AC37: 1 | AD37: 1 | AE37: 0 | AF37: 0 | AG37: 0 | AH37: 0 | AI37: 0 | AJ37: 0
C38: Hotels and restaurants | E38: Hotels and restaurants | H38: 350 | I38: 5 | J38: 1750 | K38: 70 | L38: 350 | M38: 0.1428571429 | N38: 0.1428571429 | O38: 0.1428571429 | P38: 0.1428571429 | Q38: 0 | R38: 0 | S38: 0 | T38: 0 | U38: 0.5 | V38: 0.5 | W38: 0 | X38: 0 | Y38: 0 | Z38: 0 | AA38: 0 | AB38: 0 | AC38: 0.5 | AD38: 0.5 | AE38: 0.6666666667 | AF38: 0.6666666667 | AG38: 0.6666666667 | AH38: 0.1428571429 | AI38: 0.1428571429 | AJ38: 0.1428571429
C39: Government and other offices | E39: Government and other offices | H39: 150 | I39: 9 | J39: 1350 | K39: 150 | L39: 1350 | M39: 0 | N39: 0 | O39: 0 | P39: 0 | Q39: 0 | R39: 0 | S39: 0 | T39: 0 | U39: 0.5 | V39: 0.5 | W39: 1 | X39: 1 | Y39: 1 | Z39: 1 | AA39: 1 | AB39: 1 | AC39: 1 | AD39: 1 | AE39: 0 | AF39: 0 | AG39: 0 | AH39: 0 | AI39: 0 | AJ39: 0
M41: =M5 -> 0 | N41: 1 | O41: 2 | P41: 3 | Q41: 4 | R41: 5 | S41: 6 | T41: 7 | U41: 8 | V41: 9 | W41: 10 | X41: 11 | Y41: 12 | Z41: 13 | AA41: 14 | AB41: 15 | AC41: 16 | AD41: 17 | AE41: 18 | AF41: 19 | AG41: 20 | AH41: 21 | AI41: 22 | AJ41: 23
E42: Total Energy Load | J42: =SUM(J7:J39) -> 127270 | M42: =SUMPRODUCT(M7:M39,$H$7:$H$39) -> 1427.142857 | N42: 1427.142857 | O42: 1427.142857 | P42: 1427.142857 | Q42: 720 | R42: 1410 | S42: 11180 | T42: 11180 | U42: 4100 | V42: 4100 | W42: 8634 | X42: 8634 | Y42: 6804 | Z42: 6804 | AA42: 5614 | AB42: 5614 | AC42: 6039 | AD42: 6039 | AE42: 10136 | AF42: 10136 | AG42: 10136 | AH42: 1427.142857 | AI42: 1427.142857 | AJ42: 1427.142857
E43: Maximum Load | G43: =MAX(M42:AJ42) -> 11180
A48: Graphs | E48: Row | F48: 9
M49: =M5 -> 0 | N49: 1 | O49: 2 | P49: 3 | Q49: 4 | R49: 5 | S49: 6 | T49: 7 | U49: 8 | V49: 9 | W49: 10 | X49: 11 | Y49: 12 | Z49: 13 | AA49: 14 | AB49: 15 | AC49: 16 | AD49: 17 | AE49: 18 | AF49: 19 | AG49: 20 | AH49: 21 | AI49: 22 | AJ49: 23
E50: =INDEX(E:E,$F$48) -> Bulb Other Rooms | M50: =INDEX(M:M,$F$48) -> 0.2857142857 | N50: 0.2857142857 | O50: 0.2857142857 | P50: 0.2857142857 | Q50: 0.5 | R50: 0.5 | S50: 0 | T50: 0 | U50: 0 | V50: 0 | W50: 0 | X50: 0 | Y50: 0 | Z50: 0 | AA50: 0 | AB50: 0 | AC50: 0 | AD50: 0 | AE50: 0.6666666667 | AF50: 0.6666666667 | AG50: 0.6666666667 | AH50: 0.2857142857 | AI50: 0.2857142857 | AJ50: 0.2857142857
A72: Graphs | I72: Watthours/Day
H73: =E7 -> Bulb Living Room | I73: =H7 -> 150
H74: =E8 -> Bulb Kitchen | I74: =H8 -> 150
H75: Bulb Other Rooms | I75: 300
H76: Mobile/Radio Charger | I76: 250
H77: Bulb Living Room | I77: 250
H78: Bulb Kitchen | I78: 250
H79: Bulb Other Rooms | I79: 450
H80: Mobile Charger | I80: 500
H81: TV | I81: 2500
H82: Bulb Living Room | I82: 180
H83: Bulb Kitchen | I83: 180
H84: Bulb Other Rooms | I84: 540
H85: Smart Phone | I85: 360
H86: Radio/TV | I86: 1800
H87: Fan/cooler | I87: 1080
H88: Refrigerator | I88: 1800
H89: Iron | I89: 36000
H90: Cooking Appliance | I90: 36000
H91: Lights | I91: 0
H92: Lights | I92: 28
H93: Laptop and printer | I93: 300
H94: Refrigerator | I94: 0
H95: Multimedia projector | I95: 0
H96: Lights | I96: 0
H97: Refrigerator | I97: 0
H98: Laptop and printer | I98: 0
H99: Lights | I99: 40
H100: Agro processing mill | I100: 0
H101: Saw/Furniture mill | I101: 0
H102: Welding workshop | I102: 6000
H103: Local financial institutions | I103: 1000
H104: Hotels and restaurants | I104: 350

Sheet Hydro
A3: Hydro Parameters
B5: Apply Hydro | F5: ='Minigrid Control'!$F$34 -> FALSE
B6: Generator | E6: kW | F6: 6 | G6: Applied Hydro Capacity | I6: 20 | J6: Base Hydro Capacity
B7: Capacity Applied | E7: kW | F7: =F5*F6 -> 0
B8: Head | E8: m | F8: 33
B9: Gravity | E9: m/sec2 | F9: 9.81
B10: Efficiency
C11: Turbine | E11: % | F11: 0.76
C12: Generator | E12: % | F12: 0.9 | J12: 3
B14: Flow Rate | E14: m3/sec | F14: m3/sec | G14: Potential | H14: Capacity | I14: Production | J14: Season
C15: Season - Winter | E15: 0.09 | F15: =G59 -> 0.095 | G15: =F15*$F$8*$F$9*$F$12*$F$11 -> 21.0359754 | H15: =$F$6 -> 6 | I15: =MIN(G15,H15) -> 6 | J15: Winter
C16: Season - Spring | E16: 0.09 | F16: =G57 -> 0.19 | G16: =F16*$F$8*$F$9*$F$12*$F$11 -> 42.0719508 | H16: =$F$6 -> 6 | I16: =MIN(G16,H16) -> 6 | J16: Spring
C17: Season - Summer | E17: 0.09 | F17: 0.09 | G17: =F17*$F$8*$F$9*$F$12*$F$11 -> 19.9288188 | H17: =$F$6 -> 6 | I17: =MIN(G17,H17) -> 6 | J17: Summer
C18: Season - Autumn | E18: 0.09 | F18: =G60 -> 0.069 | G18: =F18*$F$8*$F$9*$F$12*$F$11 -> 15.27876108 | H18: =$F$6 -> 6 | I18: =MIN(G18,H18) -> 6 | J18: Autumn
C20: =INDEX(C15:C18,$J$12) -> Season - Summer | E20: =INDEX(E15:E18,$J$12) -> 0.09 | F20: 0.09 | G20: 19.9288188 | H20: 6 | I20: =INDEX(I15:I18,$J$12)*F5 -> 0 | J20: Summer
A23: Costs
C24: Hydro Cap Exp | E24: USD/kW | F24: =Hydro_Cost -> 3853 | G24: 3853 | H24: Hydro Cost | J24: =F37/20 -> 4052.55 | K24: Hydro Cost Base
C25: Total Cap Exp | E25: USD | F25: =F24*F6 -> 23118
C26: O&M Cost/kWy | E26: USD/kWy | F26: =Hydro_OM -> 10 | G26: 10 | H26: Hydro OM | J26: 10 | K26: Hydro OM Base
C28: Project Life | E28: Years | F28: 30
A34: Notes
D35: Civil Engineering Structure USD | F35: 35047
D36: Electromechanical equipment USD | F36: 46004
D37: Total | F37: =SUM(F35:F36) -> 81051
D52: Liters/m3 | E52: =1/E54 -> 1000
D54: m3/Litre | E54: 0.001
E56: L/Sec | F56: m3/L | G56: m3/Sec
D57: Season 1 | E57: 190 | F57: =$E$54 -> 0.001 | G57: =E57*F57 -> 0.19
D58: Season 2 | E58: 95 | F58: =$E$54 -> 0.001 | G58: =E58*F58 -> 0.095
D59: Season 3 | E59: 95 | F59: =$E$54 -> 0.001 | G59: =E59*F59 -> 0.095
D60: Season 4 | E60: 69 | F60: =$E$54 -> 0.001 | G60: =E60*F60 -> 0.069
F63: m3/Second
D64: 2016-12-20 | F64: 0.095
D65: 2017-01-17 | F65: 0.092
D66: 2017-03-28 | F66: 0.188
D67: 2017-04-15 | F67: 0.19
D68: 2017-07-20 | F68: 0.071
D69: 2017-08-20 | F69: 0.087
D75: Basis of Estimate project developer's own
D76: cost estimate or pro forma invoice
D77: Civil Engineering
D78: Structure
D79: Dam/Weir project developer's own cost estimate referring | J79: 7242394 | K79: 7936
D80: Sand trap and intake Explain | J80: 0 | K80: 0
D81: Canal project developer's own cost estimate referring | J81: 10315118 | K81: 11303
D82: Forebay project developer's own cost estimate referring | J82: 5514842 | K82: 6043
D83: Penstock project developer's own cost estimate referring | J83: 3676865 | K83: 4029
D84: Power house project developer's own cost estimate referring | J84: 4421547 | K84: 4845
D85: Slope stabilisation Explain | K85: 0
D86: Preliminary sites works project developer's own cost estimate referring | J86: 547560 | K86: 600
D87: Roads and bridges Explain | K87: 0
D88: Other Insurance for workers | J88: 265500 | K88: 291
D89: Total | J89: 31083826 | K89: =SUM(K79:K88) -> 35047
D90: Turbine pro forma invoice Main cost of cross flow | K90: 12600
D91: Generator pro forma invoice Main cost of Generator and | K91: 4900
D92: Inlet valve pro forma invoice | K92: 1200
D93: Turbine controller pro forma invoice Load controller and ballast | K93: 2600
D94: pro forma invoice | K94: 2236
D95: Other pro forma invoice Shipment to Dar es Saalam | K95: 9800
D96: Duty taxes Assuming + VAT duties | J96: 20 | K96: 18
D97: Total | K97: 46004
D99: Distribution grid RWF Average of Beta prices and Crown solution | J99: 9944916 | K99: 10897
D100: LV Poles Explain | J100: 4565000 | K100: 5002
D101: Service connection | J101: 1296000 | K101: 1420
D102: Meters/load limiters Pro forma invoice single phase meters; | J102: 10664 | K102: 4
D103: Meters/load limiters Pro forma invoice single phase meters; | J103: 15392350 | K103: 16866
D104: Other | J104: 2491 | K104: 0
D105: Total | J105: 43203824 | K105: 47341
D106: Virtual systems
D107: Battery/SHS/PicoPV | J107: 0 | K107: 4
D108: Expropriation project developer's own cost estimate | K108: 2402
D109: Simplified license kW USD | K109: 500
D110: Environmental management project developer's own cost estimate | K110: 1801
D111: Training of technicians Explain
D112: Other project developer's own cost estimate | K112: 2092
D113: TOTAL | K113: 6295
D114: Table Total cost summary | K114: 0.3333333333
D115: Civil Engineering Structure | J115: 35047 | K115: 26.02
D116: Electro mechanical equipment | J116: 46004 | K116: 34.16
D117: Distribution system | J117: 47341 | K117: 35.15
D118: Virtual system | K118: 0
D119: Office equipment | K119: 0
D120: Non Construction cost | J120: 6295 | K120: 4.67
D121: TOTAL | K121: 134687
D122: Contingency * | J122: 13469 | K122: 10
D123: GRAND TOTAL | K123: 148156

Sheet Diesel
A3: Diesel Parameters
B5: Apply Diesel | E5: Flag | F5: ='Minigrid Control'!$F$73 -> FALSE
B6: Generator | E6: kW | F6: 10
B7: Diesel Applied | E7: kW | F7: =F5*F6 -> 0
B8: Heat Rate | E8: Litre/MWH | F8: =0.21*1000 -> 210
B9: BTU/Litre | E9: BTU/Litre | F9: 33025
B10: Litre/BTU | E10: Litre/BTU | F10: =1/F9 -> 3.028009084e-05
B11: Heat Rate | E11: BTU/KWH | F11: =F8*F9/1000 -> 6935.25
B13: Diesel Price | E13: USD/Litre | F13: 1.145
B14: Diesel Price | E14: USD/MMBTU | F14: =F13*F10*1000000 -> 34.67070401
B15: Diesel Cost | E15: USD/MWH | F15: =F14*F11/1000 -> 240.45
A18: Costs and Life
C19: Diesel Cost | E19: USD/kW | F19: =Hydro_Cost -> 650 | G19: 650 | H19: Diesel Cost | J19: 650 | K19: Diesel Cost Base
C20: Total Cap Exp | E20: USD | F20: =F19*F6 -> 6500
C21: O&M Cost/kWy | E21: USD/kWy | F21: =Hydro_OM -> 15 | G21: 15 | H21: Diesel OM | J21: 15 | K21: Diesel OM Base
C22: Variable O&M | E22: USD/MWH | F22: 4
C24: Project Life | E24: Years | F24: 20
G62: Diesel Efficiency
E64: Load | F64: Load / | G64: Engine Power | H64: Fuel Rate | I64: Fuel Efficiency | J64: Litre/ | K64: MBTU | L64: MMBTU
E65: Percent | F65: kW | G65: kW | H65: Litres / hour | I65: kWh / litre | J65: MWH | K65: per Liter | L65: per MWH
E66: 100 | F66: 925 | G66: 983.2 | H66: 233 | I66: 3.97 | J66: =1/I66*1000 -> 251.8891688 | K66: 0.0306 | L66: =J66/K66/1000 -> 8.231672182
E67: 90 | F67: 832.5 | G67: 886 | H67: 209.2 | I67: 3.98 | J67: =1/I67*1000 -> 251.2562814 | K67: 0.0306 | L67: =J67/K67/1000 -> 8.210989588
E68: 80 | F68: 740 | G68: 789.8 | H68: 186.6 | I68: 3.97 | J68: 251.8891688 | K68: 0.0306 | L68: 8.231672182
E69: 75 | F69: 693.8 | G69: 742 | H69: 175.9 | I69: 3.94 | J69: 253.8071066 | K69: 0.0306 | L69: 8.294349889
E70: 70 | F70: 647.5 | G70: 694.2 | H70: 165.2 | I70: 3.92 | J70: 255.1020408 | K70: 0.0306 | L70: 8.336668001
E71: 60 | F71: 555 | G71: 599 | H71: 144 | I71: 3.85 | J71: 259.7402597 | K71: 0.0306 | L71: 8.488243782
E72: 50 | F72: 462.5 | G72: 504.4 | H72: 123 | I72: 3.76 | J72: 265.9574468 | K72: 0.0306 | L72: 8.69141983
E73: 40 | F73: 370 | G73: 413.1 | H73: 102.8 | I73: 3.6 | J73: 277.7777778 | K73: 0.0306 | L73: 9.077705156
E74: 30 | F74: 277.5 | G74: 319.6 | H74: 82.3 | I74: 3.37 | J74: 296.735905 | K74: 0.0306 | L74: 9.697251799
E75: 25 | F75: 231.3 | G75: 272 | H75: 71.9 | I75: 3.22 | J75: 310.5590062 | K75: 0.0306 | L75: 10.14898713

Sheet Solar and Battery
A3: Alterantive Solar and Battery Costs
B4: Capacity | D4: kW | E4: ='Sample Prices'!K2 -> 7 | F4: ='Sample Prices'!L2 -> 7 | G4: ='Sample Prices'!R2 -> 5 | H4: ='Sample Prices'!S2 -> 5 | I4: ='Sample Prices'!W2 -> 3 | J4: ='Sample Prices'!X2 -> 3 | K4: ='Sample Prices'!AG2 -> 2 | L4: ='Sample Prices'!AH2 -> 5
B5: Storage Hours | D5: Hrs | E5: 5 | F5: 5 | G5: 5 | H5: 5 | I5: ='Sample Prices'!W4 -> 1 | J5: ='Sample Prices'!X4 -> 1 | K5: 5 | L5: 5
B6: Energy | D6: kWh | E6: =E4*E5 -> 35 | F6: 35 | G6: 25 | H6: 25 | I6: 3 | J6: 3 | K6: 10 | L6: 25
B7: Total Cost | D7: USD | E7: ='Sample Prices'!K3 -> 4800 | F7: ='Sample Prices'!L3 -> 7500 | G7: ='Sample Prices'!R3 -> 4000 | H7: ='Sample Prices'!S3 -> 4500 | I7: ='Sample Prices'!W3 -> 900 | J7: ='Sample Prices'!X3 -> 2370 | K7: ='Sample Prices'!AG3 -> 2500 | L7: ='Sample Prices'!AH3 -> 4500
B8: Cost/kW | D8: USD/kW | E8: =E7/E4 -> 685.7142857 | F8: 1071.428571 | G8: 800 | H8: 900 | I8: 300 | J8: 790 | K8: 1250 | L8: 900
B9: Cost/kWh | D9: USD/kWh | E9: =E7/E6 -> 137.1428571 | F9: 214.2857143 | G9: 160 | H9: 180 | I9: 300 | J9: 790 | K9: 250 | L9: 180
A11: Solar and Battery Parameters
B12: Include Solar | D12: Flag | E12: ='Minigrid Control'!F50 -> TRUE
B13: Solar Capacity | D13: kW | E13: 29 | I13: 65 | J13: Base Solar Capacity
B14: Solar Capacity Applied | D14: kW | E14: =E13*E12 -> 29
B15: Include Battery | E15: ='Minigrid Control'!$F$61 -> TRUE
B16: Base Battery Capacity | D16: kWh | E16: 57
B17: Base Battery Capacity | D17: kWh | E17: =E15*E16 -> 57 | F17: Applied Battery | I17: 250 | J17: Base Solar Capacity
B18: Round Trip Efficiecny | D18: % | E18: =G18/100 -> 0.95 | F18: Round Trip | G18: 95 | I18: 80 | J18: Base Round Trip
B19: Depth of Discharge | D19: % | E19: =G19/100 -> 0.05 | F19: Depth Discharge | G19: 5 | I19: 15 | J19: Base Depth Discharge
B21: Solar and Battery Cost
B22: Capital Cost
C23: Solar and Inverter | D23: USD/kW | E23: 890 | F23: Solar Cost | I23: 600 | J23: Base Solar Cost
C24: Battery Cost | D24: USD/kWh | E24: 130 | F24: Battery Cost | I24: 150 | J24: Base Battery Cost
B26: Applied O&M Cost
C27: Solar and Inverter | D27: USD/kWy | E27: 4 | F27: Solar OM | I27: 5 | J27: Base Solar OM
C28: Battery Cost | D28: USD/kWhy | E28: =G28/10 -> 0.1 | F28: Battery OM | G28: 1 | I28: 1 | J28: Base Battery OM

Sheet Solar Production
G3: 0 | H3: 1 | I3: 2 | J3: 3 | K3: 4 | L3: 5 | M3: 6 | N3: 7 | O3: 8 | P3: 9 | Q3: 10 | R3: 11 | S3: 12 | T3: 13 | U3: 14 | V3: 15 | W3: 16 | X3: 17 | Y3: 18 | Z3: 19 | AA3: 20 | AB3: 21 | AC3: 22 | AD3: 23
D4: Row | E4: 11
B6: 1 | C6: =D6&" "&E6 -> January Typical | D6: January | E6: Typical | F6: 2013-01-25 | G6: 0 | H6: 0 | I6: 0 | J6: 0 | K6: 0 | L6: 0.1282169454 | M6: 0.3709187143 | N6: 0.5805725371 | O6: 0.6241916618 | P6: 0.5612377851 | Q6: 0.4344309612 | R6: 0.6913569749 | S6: 0.1999060037 | T6: 0.4334183236 | U6: 0.3347098249 | V6: 0.009407118669 | W6: 0.004201972524 | X6: 0 | Y6: 0 | Z6: 0 | AA6: 0 | AB6: 0 | AC6: 0 | AD6: 0
B7: 2 | C7: =D7&" "&E7 -> May Typical | D7: May | E7: Typical | F7: 2013-05-01 | G7: 0 | H7: 0 | I7: 0 | J7: 0 | K7: 0 | L7: 0.02462507322 | M7: 0.1359394895 | N7: 0.3548300807 | O7: 0.5322309253 | P7: 0.4388127478 | Q7: 0.7076064947 | R7: 0.3787453613 | S7: 0.4358316187 | T7: 0.3836476626 | U7: 0.1477125837 | V7: 0.05579916667 | W7: 0 | X7: 0 | Y7: 0 | Z7: 0 | AA7: 0 | AB7: 0 | AC7: 0 | AD7: 0
B8: 3 | C8: July Typical | D8: July | E8: Typical | F8: 2013-07-01 | G8: 0 | H8: 0 | I8: 0 | J8: 0 | K8: 0 | L8: 0.04678953189 | M8: 0.3517637765 | N8: 0.5383540699 | O8: 0.5984687759 | P8: 0.702846152 | Q8: 0.7305753851 | R8: 0.6761295564 | S8: 0.6005981539 | T8: 0.4567089866 | U8: 0.119746753 | V8: 0.05761623587 | W8: 0 | X8: 0 | Y8: 0 | Z8: 0 | AA8: 0 | AB8: 0 | AC8: 0 | AD8: 0
B9: 4 | C9: November Typical | D9: November | E9: Typical | F9: 2013-11-06 | G9: 0 | H9: 0 | I9: 0 | J9: 0 | K9: 0.01216111417 | L9: 0.08160722765 | M9: 0.08084065158 | N9: 0.2140734651 | O9: 0.8598428236 | P9: 0.9055818624 | Q9: 0.4450116037 | R9: 0.6950478967 | S9: 0.4964668393 | T9: 0.06245228984 | U9: 0.2834533312 | V9: 0.04721540748 | W9: 0 | X9: 0 | Y9: 0 | Z9: 0 | AA9: 0 | AB9: 0 | AC9: 0 | AD9: 0
B10: 5 | C10: January Low | D10: January | E10: Low | F10: 2013-01-03 | G10: 0 | H10: 0 | I10: 0 | J10: 0 | K10: 0 | L10: 0.02205089185 | M10: 0.03099427932 | N10: 0.05157826634 | O10: 0.267525584 | P10: 0.4722013944 | Q10: 0.4247683171 | R10: 0.7066222489 | S10: 0.1073111857 | T10: 0.06744923013 | U10: 0.04801983916 | V10: 0.06415579221 | W10: 0 | X10: 0 | Y10: 0 | Z10: 0 | AA10: 0 | AB10: 0 | AC10: 0 | AD10: 0
B11: 6 | C11: May Low | D11: May | E11: Low | F11: 2013-05-04 | G11: 0 | H11: 0 | I11: 0 | J11: 0 | K11: 0 | L11: 0.01571007746 | M11: 0.1044436234 | N11: 0.223650934 | O11: 0.2244742935 | P11: 0.3318706543 | Q11: 0.4320176661 | R11: 0.06074878746 | S11: 0.09939936356 | T11: 0.2564717464 | U11: 0.04076102627 | V11: 0.03995659459 | W11: 0 | X11: 0 | Y11: 0 | Z11: 0 | AA11: 0 | AB11: 0 | AC11: 0 | AD11: 0
B12: 7 | C12: July Low | D12: July | E12: Low | F12: 2013-08-02 | G12: 0 | H12: 0 | I12: 0 | J12: 0 | K12: 0 | L12: 0.02785226383 | M12: 0.1182419926 | N12: 0.5001956167 | O12: 0.5301110112 | P12: 0.4561316886 | Q12: 0.6739907145 | R12: 0.279421709 | S12: 0.1717698228 | T12: 0.232442899 | U12: 0.1756784143 | V12: 0.06887827935 | W12: 0 | X12: 0 | Y12: 0 | Z12: 0 | AA12: 0 | AB12: 0 | AC12: 0 | AD12: 0
B13: 8 | C13: November Low | D13: November | E13: Low | F13: 2013-11-16 | G13: 0 | H13: 0 | I13: 0 | J13: 0 | K13: 0.018170692 | L13: 0.1893726807 | M13: 0.3114664814 | N13: 0.3716474347 | O13: 0.06714638527 | P13: 0.1049262824 | Q13: 0.09857600408 | R13: 0.2393799392 | S13: 0.3303753578 | T13: 0.47667782 | U13: 0.2887815081 | V13: 0.04780216941 | W13: 0 | X13: 0 | Y13: 0 | Z13: 0 | AA13: 0 | AB13: 0 | AC13: 0 | AD13: 0
B14: 9 | C14: January High | D14: January | E14: High | F14: 2013-01-07 | G14: 0 | H14: 0 | I14: 0 | J14: 0 | K14: 0 | L14: 0.07282472652 | M14: 0.3633002731 | N14: 0.5796734664 | O14: 0.711543478 | P14: 0.840280938 | Q14: 0.8161669155 | R14: 0.8336562066 | S14: 0.7683647461 | T14: 0.5430860209 | U14: 0.3872534093 | V14: 0.08794804204 | W14: 0 | X14: 0 | Y14: 0 | Z14: 0 | AA14: 0 | AB14: 0 | AC14: 0 | AD14: 0
B15: 10 | C15: May High | D15: May | E15: High | F15: 2013-05-09 | G15: 0 | H15: 0 | I15: 0 | J15: 0 | K15: 0 | L15: 0.06644605651 | M15: 0.1843189569 | N15: 0.4256200683 | O15: 0.7047862519 | P15: 0.8402998658 | Q15: 0.8561045823 | R15: 0.810412863 | S15: 0.6100715199 | T15: 0.2455598673 | U15: 0.1186962599 | V15: 0.05958472751 | W15: 0 | X15: 0 | Y15: 0 | Z15: 0 | AA15: 0 | AB15: 0 | AC15: 0 | AD15: 0
B16: 11 | C16: July High | D16: July | E16: High | F16: 2013-07-13 | G16: 0 | H16: 0 | I16: 0 | J16: 0 | K16: 0 | L16: 0.05498527109 | M16: 0.3364227912 | N16: 0.5336410467 | O16: 0.6749371047 | P16: 0.7600081206 | Q16: 0.7897626287 | R16: 0.7478091508 | S16: 0.6694291137 | T16: 0.5361679085 | U16: 0.124677446 | V16: 0.06902023788 | W16: 0 | X16: 0 | Y16: 0 | Z16: 0 | AA16: 0 | AB16: 0 | AC16: 0 | AD16: 0
B17: 12 | C17: November High | D17: November | E17: High | F17: 2013-11-02 | G17: 0 | H17: 0 | I17: 0 | J17: 0 | K17: 0 | L17: 0.1019451532 | M17: 0.4256389961 | N17: 0.6585550902 | O17: 0.7220105537 | P17: 0.6732052107 | Q17: 0.8311104169 | R17: 0.8434229535 | S17: 0.7265910823 | T17: 0.557187235 | U17: 0.2895102286 | V17: 0.003009520862 | W17: 0 | X17: 0 | Y17: 0 | Z17: 0 | AA17: 0 | AB17: 0 | AC17: 0 | AD17: 0
G19: =G3 -> 0 | H19: 1 | I19: 2 | J19: 3 | K19: 4 | L19: 5 | M19: 6 | N19: 7 | O19: 8 | P19: 9 | Q19: 10 | R19: 11 | S19: 12 | T19: 13 | U19: 14 | V19: 15 | W19: 16 | X19: 17 | Y19: 18 | Z19: 19 | AA19: 20 | AB19: 21 | AC19: 22 | AD19: 23
C20: =INDEX(C6:C17,$E$4) -> July High | D20: =INDEX(D6:D17,$E$4) -> July | E20: High | F20: 2013-07-13 | G20: 0 | H20: 0 | I20: 0 | J20: 0 | K20: 0 | L20: 0.05498527109 | M20: 0.3364227912 | N20: 0.5336410467 | O20: 0.6749371047 | P20: 0.7600081206 | Q20: 0.7897626287 | R20: 0.7478091508 | S20: 0.6694291137 | T20: 0.5361679085 | U20: 0.124677446 | V20: 0.06902023788 | W20: 0 | X20: 0 | Y20: 0 | Z20: 0 | AA20: 0 | AB20: 0 | AC20: 0 | AD20: 0
B29: Capacity Factor Data | H29: 0 | I29: 1 | J29: 2 | K29: 3 | L29: 4 | M29: 5 | N29: 6 | O29: 7 | P29: 8 | Q29: 9 | R29: 10 | S29: 11 | T29: 12 | U29: 13 | V29: 14 | W29: 15 | X29: 16 | Y29: 17 | Z29: 18 | AA29: 19 | AB29: 20 | AC29: 21 | AD29: 22 | AE29: 23
D30: Area 6 | E30: Spring | F30: 2016-04-09 | G30: =AVERAGE(H30:AE30) -> 0.1728395833 | H30: 0 | I30: 0 | J30: 0 | K30: 0 | L30: 0 | M30: 0.02302 | N30: 0.18188 | O30: 0.19572 | P30: 0.52817 | Q30: 0.61975 | R30: 0.60488 | S30: 0.67975 | T30: 0.43069 | U30: 0.53024 | V30: 0.343 | W30: 0.01105 | X30: 0 | Y30: 0 | Z30: 0 | AA30: 0 | AB30: 0 | AC30: 0 | AD30: 0 | AE30: 0
D31: Area 6 | E31: Spring | F31: 2012-04-09 | G31: =AVERAGE(H31:AE31) -> 0.1574604167 | H31: 0 | I31: 0 | J31: 0 | K31: 0 | L31: 0 | M31: 0.03615 | N31: 0.12881 | O31: 0.65241 | P31: 0.61465 | Q31: 0.75401 | R31: 0.67852 | S31: 0.44223 | T31: 0.10199 | U31: 0.2667 | V31: 0.08081 | W31: 0.02277 | X31: 0 | Y31: 0 | Z31: 0 | AA31: 0 | AB31: 0 | AC31: 0 | AD31: 0 | AE31: 0
D32: Area 6 | E32: Summer | F32: 2016-07-13 | G32: 0.2069391667 | H32: 0 | I32: 0 | J32: 0 | K32: 0 | L32: 0 | M32: 0.02456 | N32: 0.15364 | O32: 0.28306 | P32: 0.61037 | Q32: 0.71476 | R32: 0.72873 | S32: 0.7074 | T32: 0.67933 | U32: 0.61859 | V32: 0.43135 | W32: 0.01475 | X32: 0 | Y32: 0 | Z32: 0 | AA32: 0 | AB32: 0 | AC32: 0 | AD32: 0 | AE32: 0
D33: Area 6 | E33: Summer | F33: 2012-07-13 | G33: 0.23781875 | H33: 0 | I33: 0 | J33: 0 | K33: 0 | L33: 0 | M33: 0.02331 | N33: 0.47399 | O33: 0.56258 | P33: 0.69184 | Q33: 0.7407 | R33: 0.71003 | S33: 0.74623 | T33: 0.54603 | U33: 0.47203 | V33: 0.53773 | W33: 0.20318 | X33: 0 | Y33: 0 | Z33: 0 | AA33: 0 | AB33: 0 | AC33: 0 | AD33: 0 | AE33: 0
D34: Area 1 | E34: Summer | F34: 2016-07-13 | G34: 0.1997466667 | H34: 0 | I34: 0 | J34: 0 | K34: 0 | L34: 0 | M34: 0.03934 | N34: 0.24023 | O34: 0.44053 | P34: 0.58698 | Q34: 0.67733 | R34: 0.70605 | S34: 0.67815 | T34: 0.59907 | U34: 0.46561 | V34: 0.29952 | W34: 0.06111 | X34: 0 | Y34: 0 | Z34: 0 | AA34: 0 | AB34: 0 | AC34: 0 | AD34: 0 | AE34: 0
D35: Area 1 | E35: Summer | F35: 2012-07-13 | G35: 0.204995 | H35: 0 | I35: 0 | J35: 0 | K35: 0 | L35: 0 | M35: 0.08625 | N35: 0.2342 | O35: 0.46906 | P35: 0.60955 | Q35: 0.68337 | R35: 0.70921 | S35: 0.687 | T35: 0.60707 | U35: 0.4815 | V35: 0.30517 | W35: 0.0475 | X35: 0 | Y35: 0 | Z35: 0 | AA35: 0 | AB35: 0 | AC35: 0 | AD35: 0 | AE35: 0
D36: Area 1 | E36: Summer | F36: 2016-07-11 | G36: 0.1704791667 | H36: 0 | I36: 0 | J36: 0 | K36: 0 | L36: 0 | M36: 0.02051 | N36: 0.14603 | O36: 0.30352 | P36: 0.54196 | Q36: 0.63274 | R36: 0.67764 | S36: 0.66767 | T36: 0.48289 | U36: 0.24265 | V36: 0.31784 | W36: 0.05805 | X36: 0 | Y36: 0 | Z36: 0 | AA36: 0 | AB36: 0 | AC36: 0 | AD36: 0 | AE36: 0
D37: Area 1 | E37: Summer | F37: 2012-07-11 | G37: 0.2064925 | H37: 0 | I37: 0 | J37: 0 | K37: 0 | L37: 0 | M37: 0.0945 | N37: 0.29513 | O37: 0.47691 | P37: 0.61234 | Q37: 0.68013 | R37: 0.70596 | S37: 0.67743 | T37: 0.59935 | U37: 0.4645 | V37: 0.30233 | W37: 0.04724 | X37: 0 | Y37: 0 | Z37: 0 | AA37: 0 | AB37: 0 | AC37: 0 | AD37: 0 | AE37: 0
D38: Area 2 | E38: Spring | F38: 2016-04-11 | G38: 0.2040858333 | H38: 0 | I38: 0 | J38: 0 | K38: 0 | L38: 0 | M38: 0.041 | N38: 0.24601 | O38: 0.42501 | P38: 0.60001 | Q38: 0.829 | R38: 0.821 | S38: 0.463 | T38: 0.70401 | U38: 0.57301 | V38: 0.18401 | W38: 0.012 | X38: 0 | Y38: 0 | Z38: 0 | AA38: 0 | AB38: 0 | AC38: 0 | AD38: 0 | AE38: 0
D39: Area 2 | E39: Spring | F39: 2012-04-11 | G39: 0.09033333333 | H39: 0 | I39: 0 | J39: 0 | K39: 0 | L39: 0 | M39: 0.005 | N39: 0.004 | O39: 0.139 | P39: 0.225 | Q39: 0.385 | R39: 0.506 | S39: 0.286 | T39: 0.19 | U39: 0.229 | V39: 0.149 | W39: 0.05 | X39: 0 | Y39: 0 | Z39: 0 | AA39: 0 | AB39: 0 | AC39: 0 | AD39: 0 | AE39: 0
D40: Area 3 | E40: Summer | F40: 2016-06-11 | G40: 0.1988770833 | H40: 0 | I40: 0 | J40: 0 | K40: 0 | L40: 0 | M40: 0.11234 | N40: 0.33071 | O40: 0.49838 | P40: 0.62286 | Q40: 0.68223 | R40: 0.6807 | S40: 0.66501 | T40: 0.52607 | U40: 0.29103 | V40: 0.28427 | W40: 0.07945 | X40: 0 | Y40: 0 | Z40: 0 | AA40: 0 | AB40: 0 | AC40: 0 | AD40: 0 | AE40: 0
D41: Area 3 | E41: Summer | F41: 2012-06-11 | G41: 0.1045829167 | H41: 0 | I41: 0 | J41: 0 | K41: 0 | L41: 0 | M41: 0.03638 | N41: 0.01961 | O41: 0.03379 | P41: 0.19048 | Q41: 0.47447 | R41: 0.29002 | S41: 0.41099 | T41: 0.2236 | U41: 0.46979 | V41: 0.27701 | W41: 0.08385 | X41: 0 | Y41: 0 | Z41: 0 | AA41: 0 | AB41: 0 | AC41: 0 | AD41: 0 | AE41: 0
D42: Area 3 | E42: Spring | F42: 2016-05-10 | G42: 0.1699225 | H42: 0 | I42: 0 | J42: 0 | K42: 0 | L42: 0 | M42: 0.10387 | N42: 0.26691 | O42: 0.4496 | P42: 0.47514 | Q42: 0.55235 | R42: 0.6104 | S42: 0.61677 | T42: 0.58345 | U42: 0.31423 | V42: 0.09558 | W42: 0.00984 | X42: 0 | Y42: 0 | Z42: 0 | AA42: 0 | AB42: 0 | AC42: 0 | AD42: 0 | AE42: 0
D43: Area 3 | E43: Spring | F43: 2012-05-10 | G43: 0.1280825 | H43: 0 | I43: 0 | J43: 0 | K43: 0 | L43: 0 | M43: 0.02437 | N43: 0.20727 | O43: 0.24922 | P43: 0.07752 | Q43: 0.42803 | R43: 0.73649 | S43: 0.60251 | T43: 0.31945 | U43: 0.17914 | V43: 0.16946 | W43: 0.08052 | X43: 0 | Y43: 0 | Z43: 0 | AA43: 0 | AB43: 0 | AC43: 0 | AD43: 0 | AE43: 0
D44: Area 4 | E44: Spring | F44: 2016-04-10 | G44: 0.1658295833 | H44: 0 | I44: 0 | J44: 0 | K44: 0 | L44: 0 | M44: 0.10453 | N44: 0.29584 | O44: 0.54458 | P44: 0.66292 | Q44: 0.76073 | R44: 0.80537 | S44: 0.52849 | T44: 0.05379 | U44: 0.0897 | V44: 0.04772 | W44: 0.08624 | X44: 0 | Y44: 0 | Z44: 0 | AA44: 0 | AB44: 0 | AC44: 0 | AD44: 0 | AE44: 0
D45: Area 4 | E45: Fall | F45: 2012-10-10 | G45: 0.2127870833 | H45: 0 | I45: 0 | J45: 0 | K45: 0 | L45: 0 | M45: 0.13132 | N45: 0.32621 | O45: 0.54501 | P45: 0.50671 | Q45: 0.70444 | R45: 0.79408 | S45: 0.67366 | T45: 0.65098 | U45: 0.47106 | V45: 0.23385 | W45: 0.06957 | X45: 0 | Y45: 0 | Z45: 0 | AA45: 0 | AB45: 0 | AC45: 0 | AD45: 0 | AE45: 0
D46: Area 4 | E46: Summer | F46: 2016-07-09 | G46: 0.1778066667 | H46: 0 | I46: 0 | J46: 0 | K46: 0 | L46: 0 | M46: 0.08171 | N46: 0.25902 | O46: 0.38394 | P46: 0.57579 | Q46: 0.64772 | R46: 0.66487 | S46: 0.61926 | T46: 0.42234 | U46: 0.28658 | V46: 0.21328 | W46: 0.11285 | X46: 0 | Y46: 0 | Z46: 0 | AA46: 0 | AB46: 0 | AC46: 0 | AD46: 0 | AE46: 0
D47: Area 4 | E47: Summer | F47: 2012-07-09 | G47: 0.1960304167 | H47: 0 | I47: 0 | J47: 0 | K47: 0 | L47: 0 | M47: 0.09039 | N47: 0.12857 | O47: 0.4447 | P47: 0.52801 | Q47: 0.6824 | R47: 0.64603 | S47: 0.68212 | T47: 0.60546 | U47: 0.48673 | V47: 0.30544 | W47: 0.10488 | X47: 0 | Y47: 0 | Z47: 0 | AA47: 0 | AB47: 0 | AC47: 0 | AD47: 0 | AE47: 0
D48: Area 5 | E48: Winter | F48: 2016-01-09 | G48: 0.1844233333 | H48: 0 | I48: 0 | J48: 0 | K48: 0 | L48: 0 | M48: 0.05563 | N48: 0.18873 | O48: 0.33621 | P48: 0.50367 | Q48: 0.65938 | R48: 0.67726 | S48: 0.65709 | T48: 0.57574 | U48: 0.45363 | V48: 0.22333 | W48: 0.09549 | X48: 0 | Y48: 0 | Z48: 0 | AA48: 0 | AB48: 0 | AC48: 0 | AD48: 0 | AE48: 0
D49: Area 5 | E49: Summer | F49: 2012-07-09 | G49: 0.20233875 | H49: 0 | I49: 0 | J49: 0 | K49: 0 | L49: 0 | M49: 0.05961 | N49: 0.25508 | O49: 0.44509 | P49: 0.58185 | Q49: 0.67186 | R49: 0.67419 | S49: 0.66706 | T49: 0.60159 | U49: 0.47994 | V49: 0.30649 | W49: 0.11337 | X49: 0 | Y49: 0 | Z49: 0 | AA49: 0 | AB49: 0 | AC49: 0 | AD49: 0 | AE49: 0
B51: Selections by Season
D53: Winter | E53: 20
H54: =H29 -> 0 | I54: 1 | J54: 2 | K54: 3 | L54: 4 | M54: 5 | N54: 6 | O54: 7 | P54: 8 | Q54: 9 | R54: 10 | S54: 11 | T54: 12 | U54: 13 | V54: 14 | W54: 15 | X54: 16 | Y54: 17 | Z54: 18 | AA54: 19 | AB54: 20 | AC54: 21 | AD54: 22 | AE54: 23
D55: =INDEX(D:D,$E$53) -> July | E55: High | F55: 2013-07-13 | G55: 0 | H55: 0 | I55: 0 | J55: 0 | K55: 0 | L55: 0.05498527109 | M55: 0.3364227912 | N55: 0.5336410467 | O55: 0.6749371047 | P55: 0.7600081206 | Q55: 0.7897626287 | R55: 0.7478091508 | S55: 0.6694291137 | T55: 0.5361679085 | U55: 0.124677446 | V55: 0.06902023788 | W55: 0 | X55: 0 | Y55: 0 | Z55: 0 | AA55: 0 | AB55: 0 | AC55: 0 | AD55: 0 | AE55: 0
D57: Spring | E57: 11
H58: =H54 -> 0 | I58: =I54 -> 1 | J58: 2 | K58: 3 | L58: 4 | M58: 5 | N58: 6 | O58: 7 | P58: 8 | Q58: 9 | R58: 10 | S58: 11 | T58: 12 | U58: 13 | V58: 14 | W58: 15 | X58: 16 | Y58: 17 | Z58: 18 | AA58: 19 | AB58: 20 | AC58: 21 | AD58: 22 | AE58: 23
D59: =INDEX(D:D,$E$57) -> May | E59: Low | F59: 2013-05-04 | G59: 0 | H59: 0 | I59: 0 | J59: 0 | K59: 0 | L59: 0.01571007746 | M59: 0.1044436234 | N59: 0.223650934 | O59: 0.2244742935 | P59: 0.3318706543 | Q59: 0.4320176661 | R59: 0.06074878746 | S59: 0.09939936356 | T59: 0.2564717464 | U59: 0.04076102627 | V59: 0.03995659459 | W59: 0 | X59: 0 | Y59: 0 | Z59: 0 | AA59: 0 | AB59: 0 | AC59: 0 | AD59: 0 | AE59: 0
D61: Summer | E61: 5
H62: =H58 -> 0 | I62: =I58 -> 1 | J62: 2 | K62: 3 | L62: 4 | M62: 5 | N62: 6 | O62: 7 | P62: 8 | Q62: 9 | R62: 10 | S62: 11 | T62: 12 | U62: 13 | V62: 14 | W62: 15 | X62: 16 | Y62: 17 | Z62: 18 | AA62: 19 | AB62: 20 | AC62: 21 | AD62: 22 | AE62: 23
D63: =INDEX(D:D,$E$61) -> 0 | E63: 0 | F63: 00:00:00 | G63: 0 | H63: 0 | I63: 0 | J63: 0 | K63: 0 | L63: 0 | M63: 0 | N63: 0 | O63: 0 | P63: 0 | Q63: 0 | R63: 0 | S63: 0 | T63: 0 | U63: 0 | V63: 0 | W63: 0 | X63: 0 | Y63: 0 | Z63: 0 | AA63: 0 | AB63: 0 | AC63: 0 | AD63: 0 | AE63: 0
D65: Fall | E65: 17
H66: =H62 -> 0 | I66: =I62 -> 1 | J66: 2 | K66: 3 | L66: 4 | M66: 5 | N66: 6 | O66: 7 | P66: 8 | Q66: 9 | R66: 10 | S66: 11 | T66: 12 | U66: 13 | V66: 14 | W66: 15 | X66: 16 | Y66: 17 | Z66: 18 | AA66: 19 | AB66: 20 | AC66: 21 | AD66: 22 | AE66: 23
D67: =INDEX(D:D,$E$65) -> November | E67: High | F67: 2013-11-02 | G67: 0 | H67: 0 | I67: 0 | J67: 0 | K67: 0 | L67: 0.1019451532 | M67: 0.4256389961 | N67: 0.6585550902 | O67: 0.7220105537 | P67: 0.6732052107 | Q67: 0.8311104169 | R67: 0.8434229535 | S67: 0.7265910823 | T67: 0.557187235 | U67: 0.2895102286 | V67: 0.003009520862 | W67: 0 | X67: 0 | Y67: 0 | Z67: 0 | AA67: 0 | AB67: 0 | AC67: 0 | AD67: 0 | AE67: 0
B69: Graphs

Sheet Demand and Supply Dispatch
A1: Parameters
B2: Daily Energy | C2: ='End Uses'!J42 -> 127270
B4: Hydro Energy (kWhour) | C4: =Hydro!$I$20 -> 0 | H4: Hydro Season
B5: Solar Capacity (kW) | C5: ='Solar and Battery'!E14 -> 29 | H5: Solar Shape
B6: Battery Capacity (kWh) | C6: ='Solar and Battery'!E17 -> 57
B7: Diesel Capacity (kW) | C7: =Diesel!F7 -> 0
D8: Max Watt | E8: Watthour | F8: CF/LF | G8: Watts per Hour
G9: 0 | H9: 1 | I9: 2 | J9: 3 | K9: 4 | L9: 5 | M9: 6 | N9: 7 | O9: 8 | P9: 9 | Q9: 10 | R9: 11 | S9: 12 | T9: 13 | U9: 14 | V9: 15 | W9: 16 | X9: 17 | Y9: 18 | Z9: 19 | AA9: 20 | AB9: 21 | AC9: 22 | AD9: 23
A10: Chronological Analysis
B11: Demand | C11: kW/kWh | D11: =MAX(G11:AD11) -> 11.18 | E11: =SUM(G11:AD11) -> 127.27 | G11: ='End Uses'!M42/1000 -> 1.427142857 | H11: ='End Uses'!N42/1000 -> 1.427142857 | I11: ='End Uses'!O42/1000 -> 1.427142857 | J11: ='End Uses'!P42/1000 -> 1.427142857 | K11: ='End Uses'!Q42/1000 -> 0.72 | L11: ='End Uses'!R42/1000 -> 1.41 | M11: ='End Uses'!S42/1000 -> 11.18 | N11: ='End Uses'!T42/1000 -> 11.18 | O11: ='End Uses'!U42/1000 -> 4.1 | P11: ='End Uses'!V42/1000 -> 4.1 | Q11: ='End Uses'!W42/1000 -> 8.634 | R11: ='End Uses'!X42/1000 -> 8.634 | S11: ='End Uses'!Y42/1000 -> 6.804 | T11: ='End Uses'!Z42/1000 -> 6.804 | U11: ='End Uses'!AA42/1000 -> 5.614 | V11: ='End Uses'!AB42/1000 -> 5.614 | W11: ='End Uses'!AC42/1000 -> 6.039 | X11: ='End Uses'!AD42/1000 -> 6.039 | Y11: ='End Uses'!AE42/1000 -> 10.136 | Z11: ='End Uses'!AF42/1000 -> 10.136 | AA11: ='End Uses'!AG42/1000 -> 10.136 | AB11: ='End Uses'!AH42/1000 -> 1.427142857 | AC11: ='End Uses'!AI42/1000 -> 1.427142857 | AD11: ='End Uses'!AJ42/1000 -> 1.427142857
B13: Solar Capacity Factor | F13: =AVERAGE(G13:AD13) -> 0.2207025342 | G13: ='Solar Production'!H55 -> 0 | H13: ='Solar Production'!I55 -> 0 | I13: ='Solar Production'!J55 -> 0 | J13: ='Solar Production'!K55 -> 0 | K13: ='Solar Production'!L55 -> 0.05498527109 | L13: ='Solar Production'!M55 -> 0.3364227912 | M13: ='Solar Production'!N55 -> 0.5336410467 | N13: ='Solar Production'!O55 -> 0.6749371047 | O13: ='Solar Production'!P55 -> 0.7600081206 | P13: ='Solar Production'!Q55 -> 0.7897626287 | Q13: ='Solar Production'!R55 -> 0.7478091508 | R13: ='Solar Production'!S55 -> 0.6694291137 | S13: ='Solar Production'!T55 -> 0.5361679085 | T13: ='Solar Production'!U55 -> 0.124677446 | U13: ='Solar Production'!V55 -> 0.06902023788 | V13: ='Solar Production'!W55 -> 0 | W13: ='Solar Production'!X55 -> 0 | X13: ='Solar Production'!Y55 -> 0 | Y13: ='Solar Production'!Z55 -> 0 | Z13: ='Solar Production'!AA55 -> 0 | AA13: ='Solar Production'!AB55 -> 0 | AB13: ='Solar Production'!AC55 -> 0 | AC13: ='Solar Production'!AD55 -> 0 | AD13: ='Solar Production'!AE55 -> 0
B14: Solar Production | C14: kW/kWh | D14: =C5 -> 29 | E14: =SUM(G14:AD14) -> 153.6089638 | G14: =$D$14*G13 -> 0 | H14: =$D$14*H13 -> 0 | I14: 0 | J14: 0 | K14: 1.594572862 | L14: 9.756260945 | M14: 15.47559035 | N14: 19.57317604 | O14: 22.0402355 | P14: 22.90311623 | Q14: 21.68646537 | R14: 19.4134443 | S14: 15.54886935 | T14: 3.615645935 | U14: 2.001586899 | V14: 0 | W14: 0 | X14: 0 | Y14: 0 | Z14: 0 | AA14: 0 | AB14: 0 | AC14: 0 | AD14: 0
B15: Hydro Production | C15: kW/kWh | D15: =C4 -> 0 | E15: =SUM(G15:AD15) -> 0 | G15: =$D$15 -> 0 | H15: =$D$15 -> 0 | I15: 0 | J15: 0 | K15: 0 | L15: 0 | M15: 0 | N15: 0 | O15: 0 | P15: 0 | Q15: 0 | R15: 0 | S15: 0 | T15: 0 | U15: 0 | V15: 0 | W15: 0 | X15: 0 | Y15: 0 | Z15: 0 | AA15: 0 | AB15: 0 | AC15: 0 | AD15: 0
B16: Total Renewable Production | C16: kW/kWh | D16: =SUM(D14:D15) -> 29 | E16: =SUM(G16:AD16) -> 153.6089638 | G16: =G14+G15 -> 0 | H16: =H14+H15 -> 0 | I16: 0 | J16: 0 | K16: 1.594572862 | L16: 9.756260945 | M16: 15.47559035 | N16: 19.57317604 | O16: 22.0402355 | P16: 22.90311623 | Q16: 21.68646537 | R16: 19.4134443 | S16: 15.54886935 | T16: 3.615645935 | U16: 2.001586899 | V16: 0 | W16: 0 | X16: 0 | Y16: 0 | Z16: 0 | AA16: 0 | AB16: 0 | AC16: 0 | AD16: 0
B18: Deficit from Load and Renewable | C18: kW/kWh | E18: =SUM(G18:AD18) -> 64.89076717 | G18: =MAX(G11-G16,0) -> 1.427142857 | H18: =MAX(H11-H16,0) -> 1.427142857 | I18: 1.427142857 | J18: 1.427142857 | K18: 0 | L18: 0 | M18: 0 | N18: 0 | O18: 0 | P18: 0 | Q18: 0 | R18: 0 | S18: 0 | T18: 3.188354065 | U18: 3.612413101 | V18: 5.614 | W18: 6.039 | X18: 6.039 | Y18: 10.136 | Z18: 10.136 | AA18: 10.136 | AB18: 1.427142857 | AC18: 1.427142857 | AD18: 1.427142857
B19: Surplus from Load and Renewable | C19: kW/kWh | E19: =SUM(G19:AD19) -> 91.22973094 | G19: =MAX(G16-G11,0) -> 0 | H19: =MAX(H16-H11,0) -> 0 | I19: 0 | J19: 0 | K19: 0.8745728617 | L19: 8.346260945 | M19: 4.295590353 | N19: 8.393176038 | O19: 17.9402355 | P19: 18.80311623 | Q19: 13.05246537 | R19: 10.7794443 | S19: 8.744869347 | T19: 0 | U19: 0 | V19: 0 | W19: 0 | X19: 0 | Y19: 0 | Z19: 0 | AA19: 0 | AB19: 0 | AC19: 0 | AD19: 0
B21: Start of Charge | G21: =AND(G19>0,F19=0,H19>0) -> FALSE | H21: =AND(H19>0,G19=0,I19>0) -> FALSE | I21: =AND(I19>0,H19=0,J19>0) -> FALSE | J21: FALSE | K21: TRUE | L21: FALSE | M21: FALSE | N21: FALSE | O21: FALSE | P21: FALSE | Q21: FALSE | R21: FALSE | S21: FALSE | T21: FALSE | U21: FALSE | V21: FALSE | W21: FALSE | X21: FALSE | Y21: FALSE | Z21: FALSE | AA21: FALSE | AB21: FALSE | AC21: FALSE | AD21: FALSE
C22: 1 | G22: =F22+G21 -> 0 | H22: =G22+H21 -> 0 | I22: =H22+I21 -> 0 | J22: 0 | K22: 1 | L22: 1 | M22: 1 | N22: 1 | O22: 1 | P22: 1 | Q22: 1 | R22: 1 | S22: 1 | T22: 1 | U22: 1 | V22: 1 | W22: 1 | X22: 1 | Y22: 1 | Z22: 1 | AA22: 1 | AB22: 1 | AC22: 1 | AD22: 1
B23: First Period of Charge for Storage Analysis | C23: =MAX(C22,0) -> 1 | D23: =IFERROR(MATCH(C23,G22:AD22,0)-1,2) -> 4
A25: Re-Ordered Hourly Analysis Beginning with Charge
B26: Time Period Re-Order and Battery Balance | G26: =D23 -> 4 | H26: =IF(G26>=23,0,G26+1) -> 5 | I26: =IF(H26>=23,0,H26+1) -> 6 | J26: 7 | K26: 8 | L26: 9 | M26: 10 | N26: 11 | O26: 12 | P26: 13 | Q26: 14 | R26: 15 | S26: 16 | T26: 17 | U26: 18 | V26: 19 | W26: 20 | X26: 21 | Y26: 22 | Z26: 23 | AA26: 0 | AB26: 1 | AC26: 2 | AD26: 3
B27: Match of Re-order | G27: =MATCH(G26,9:9,0) -> 11 | H27: 12 | I27: 13 | J27: 14 | K27: 15 | L27: 16 | M27: 17 | N27: 18 | O27: 19 | P27: 20 | Q27: 21 | R27: 22 | S27: 23 | T27: 24 | U27: 25 | V27: 26 | W27: 27 | X27: 28 | Y27: 29 | Z27: 30 | AA27: 7 | AB27: 8 | AC27: 9 | AD27: 10
B29: Demand | E29: =SUM(G29:AD29) -> 127.27 | G29: =INDEX(11:11,G27) -> 0.72 | H29: 1.41 | I29: 11.18 | J29: 11.18 | K29: 4.1 | L29: 4.1 | M29: 8.634 | N29: 8.634 | O29: 6.804 | P29: 6.804 | Q29: 5.614 | R29: 5.614 | S29: 6.039 | T29: 6.039 | U29: 10.136 | V29: 10.136 | W29: 10.136 | X29: 1.427142857 | Y29: 1.427142857 | Z29: 1.427142857 | AA29: 1.427142857 | AB29: 1.427142857 | AC29: 1.427142857 | AD29: 1.427142857
B30: Renewable Production | E30: =SUM(G30:AD30) -> 153.6089638 | G30: =INDEX(14:14,G27)+INDEX(15:15,G27) -> 1.594572862 | H30: =INDEX(14:14,H27)+INDEX(15:15,H27) -> 9.756260945 | I30: 15.47559035 | J30: 19.57317604 | K30: 22.0402355 | L30: 22.90311623 | M30: 21.68646537 | N30: 19.4134443 | O30: 15.54886935 | P30: 3.615645935 | Q30: 2.001586899 | R30: 0 | S30: 0 | T30: 0 | U30: 0 | V30: 0 | W30: 0 | X30: 0 | Y30: 0 | Z30: 0 | AA30: 0 | AB30: 0 | AC30: 0 | AD30: 0
B32: Demand Directly Met from Renewable (Min Demand, Renewable) | G32: =MIN(G29,G30) -> 0.72 | H32: =MIN(H29,H30) -> 1.41 | I32: 11.18 | J32: 11.18 | K32: 4.1 | L32: 4.1 | M32: 8.634 | N32: 8.634 | O32: 6.804 | P32: 3.615645935 | Q32: 2.001586899 | R32: 0 | S32: 0 | T32: 0 | U32: 0 | V32: 0 | W32: 0 | X32: 0 | Y32: 0 | Z32: 0 | AA32: 0 | AB32: 0 | AC32: 0 | AD32: 0
B33: Demand to be Met from Batteries and Diesel (Deamnd - Met) | G33: =G29-G32 -> 0 | H33: =H29-H32 -> 0 | I33: 0 | J33: 0 | K33: 0 | L33: 0 | M33: 0 | N33: 0 | O33: 0 | P33: 3.188354065 | Q33: 3.612413101 | R33: 5.614 | S33: 6.039 | T33: 6.039 | U33: 10.136 | V33: 10.136 | W33: 10.136 | X33: 1.427142857 | Y33: 1.427142857 | Z33: 1.427142857 | AA33: 1.427142857 | AB33: 1.427142857 | AC33: 1.427142857 | AD33: 1.427142857
B34: Renewable Available for Battery Storage | G34: =G30-G32 -> 0.8745728617 | H34: =H30-H32 -> 8.346260945 | I34: 4.295590353 | J34: 8.393176038 | K34: 17.9402355 | L34: 18.80311623 | M34: 13.05246537 | N34: 10.7794443 | O34: 8.744869347 | P34: 0 | Q34: 0 | R34: 0 | S34: 0 | T34: 0 | U34: 0 | V34: 0 | W34: 0 | X34: 0 | Y34: 0 | Z34: 0 | AA34: 0 | AB34: 0 | AC34: 0 | AD34: 0
B35: Losses from Charge versus Discharge | D35: =1-'Consumer Economics'!K22 -> 0.05 | G35: =G34*$D$35 -> 0.04372864309 | H35: =H34*$D$35 -> 0.4173130472 | I35: 0.2147795177 | J35: 0.4196588019 | K35: 0.8970117748 | L35: 0.9401558116 | M35: 0.6526232686 | N35: 0.5389722149 | O35: 0.4372434674 | P35: 0 | Q35: 0 | R35: 0 | S35: 0 | T35: 0 | U35: 0 | V35: 0 | W35: 0 | X35: 0 | Y35: 0 | Z35: 0 | AA35: 0 | AB35: 0 | AC35: 0 | AD35: 0
B37: Maximum Battery Storage Balance | D37: =C6 -> 57 | G37: =$D$37 -> 57 | H37: 57 | I37: 57 | J37: 57 | K37: 57 | L37: 57 | M37: 57 | N37: 57 | O37: 57 | P37: 57 | Q37: 57 | R37: 57 | S37: 57 | T37: 57 | U37: 57 | V37: 57 | W37: 57 | X37: 57 | Y37: 57 | Z37: 57 | AA37: 57 | AB37: 57 | AC37: 57 | AD37: 57
B38: Less: Opening Balance | G38: =G44 -> 0 | H38: =H44 -> 0.8308442186 | I38: 8.759792116 | J38: 12.84060295 | K38: 20.81412019 | L38: 37.85734391 | M38: 55.72030433 | N38: 57 | O38: 57 | P38: 57 | Q38: 53.81164593 | R38: 50.19923283 | S38: 44.58523283 | T38: 38.54623283 | U38: 32.50723283 | V38: 22.37123283 | W38: 12.23523283 | X38: 2.099232833 | Y38: 0.672089976 | Z38: 0 | AA38: 0 | AB38: 0 | AC38: 0 | AD38: 0
B39: Remaining to Charge | G39: =G37-G38 -> 57 | H39: 56.16915578 | I39: 48.24020788 | J39: 44.15939705 | K39: 36.18587981 | L39: 19.14265609 | M39: 1.27969567 | N39: 0 | O39: 0 | P39: 0 | Q39: 3.188354065 | R39: 6.800767167 | S39: 12.41476717 | T39: 18.45376717 | U39: 24.49276717 | V39: 34.62876717 | W39: 44.76476717 | X39: 54.90076717 | Y39: 56.32791002 | Z39: 57 | AA39: 57 | AB39: 57 | AC39: 57 | AD39: 57
B40: Input to Battery | D40: =1-D41 -> 0.95 | G40: =MIN(G39/$D$40,G34) -> 0.8745728617 | H40: =MIN(H39/$D$40,H34) -> 8.346260945 | I40: 4.295590353 | J40: 8.393176038 | K40: 17.9402355 | L40: 18.80311623 | M40: 1.347048074 | N40: 0 | O40: 0 | P40: 0 | Q40: 0 | R40: 0 | S40: 0 | T40: 0 | U40: 0 | V40: 0 | W40: 0 | X40: 0 | Y40: 0 | Z40: 0 | AA40: 0 | AB40: 0 | AC40: 0 | AD40: 0
B41: Less: Losses from Round Trip Efficiency | D41: =D35 -> 0.05 | G41: =G40*$D$41 -> 0.04372864309 | H41: =H40*$D$41 -> 0.4173130472 | I41: 0.2147795177 | J41: 0.4196588019 | K41: 0.8970117748 | L41: 0.9401558116 | M41: 0.0673524037 | N41: 0 | O41: 0 | P41: 0 | Q41: 0 | R41: 0 | S41: 0 | T41: 0 | U41: 0 | V41: 0 | W41: 0 | X41: 0 | Y41: 0 | Z41: 0 | AA41: 0 | AB41: 0 | AC41: 0 | AD41: 0
B42: Charging from Renewable | E42: =SUM(G42:AD42) -> 57 | G42: =G40-G41 -> 0.8308442186 | H42: =H40-H41 -> 7.928947897 | I42: 4.080810836 | J42: 7.973517236 | K42: 17.04322372 | L42: 17.86296042 | M42: 1.27969567 | N42: 0 | O42: 0 | P42: 0 | Q42: 0 | R42: 0 | S42: 0 | T42: 0 | U42: 0 | V42: 0 | W42: 0 | X42: 0 | Y42: 0 | Z42: 0 | AA42: 0 | AB42: 0 | AC42: 0 | AD42: 0
B44: Opening Balance | G44: =F48 -> 0 | H44: =G48 -> 0.8308442186 | I44: 8.759792116 | J44: 12.84060295 | K44: 20.81412019 | L44: 37.85734391 | M44: 55.72030433 | N44: 57 | O44: 57 | P44: 57 | Q44: 53.81164593 | R44: 50.19923283 | S44: 44.58523283 | T44: 38.54623283 | U44: 32.50723283 | V44: 22.37123283 | W44: 12.23523283 | X44: 2.099232833 | Y44: 0.672089976 | Z44: 0 | AA44: 0 | AB44: 0 | AC44: 0 | AD44: 0
B45: Add: Charge | E45: =SUM(G45:AD45) -> 57 | G45: =G42 -> 0.8308442186 | H45: =H42 -> 7.928947897 | I45: 4.080810836 | J45: 7.973517236 | K45: 17.04322372 | L45: 17.86296042 | M45: 1.27969567 | N45: 0 | O45: 0 | P45: 0 | Q45: 0 | R45: 0 | S45: 0 | T45: 0 | U45: 0 | V45: 0 | W45: 0 | X45: 0 | Y45: 0 | Z45: 0 | AA45: 0 | AB45: 0 | AC45: 0 | AD45: 0
B46: Sub-total Before Discharge | G46: =G44+G45 -> 0.8308442186 | H46: =H44+H45 -> 8.759792116 | I46: 12.84060295 | J46: 20.81412019 | K46: 37.85734391 | L46: 55.72030433 | M46: 57 | N46: 57 | O46: 57 | P46: 57 | Q46: 53.81164593 | R46: 50.19923283 | S46: 44.58523283 | T46: 38.54623283 | U46: 32.50723283 | V46: 22.37123283 | W46: 12.23523283 | X46: 2.099232833 | Y46: 0.672089976 | Z46: 0 | AA46: 0 | AB46: 0 | AC46: 0 | AD46: 0
B47: Less: Discharge to Meet Load | E47: =SUM(G47:AD47) -> 57 | G47: =MIN(G46,G33) -> 0 | H47: =MIN(H46,H33) -> 0 | I47: 0 | J47: 0 | K47: 0 | L47: 0 | M47: 0 | N47: 0 | O47: 0 | P47: 3.188354065 | Q47: 3.612413101 | R47: 5.614 | S47: 6.039 | T47: 6.039 | U47: 10.136 | V47: 10.136 | W47: 10.136 | X47: 1.427142857 | Y47: 0.672089976 | Z47: 0 | AA47: 0 | AB47: 0 | AC47: 0 | AD47: 0
B48: Closing Balance | G48: =G46-G47 -> 0.8308442186 | H48: =H46-H47 -> 8.759792116 | I48: 12.84060295 | J48: 20.81412019 | K48: 37.85734391 | L48: 55.72030433 | M48: 57 | N48: 57 | O48: 57 | P48: 53.81164593 | Q48: 50.19923283 | R48: 44.58523283 | S48: 38.54623283 | T48: 32.50723283 | U48: 22.37123283 | V48: 12.23523283 | W48: 2.099232833 | X48: 0.672089976 | Y48: 0 | Z48: 0 | AA48: 0 | AB48: 0 | AC48: 0 | AD48: 0
B50: Total Demand Met from Battery and Renewable | E50: =SUM(G50:AD50) -> 119.3792328 | G50: =G47+G32 -> 0.72 | H50: 1.41 | I50: 11.18 | J50: 11.18 | K50: 4.1 | L50: 4.1 | M50: 8.634 | N50: 8.634 | O50: 6.804 | P50: 6.804 | Q50: 5.614 | R50: 5.614 | S50: 6.039 | T50: 6.039 | U50: 10.136 | V50: 10.136 | W50: 10.136 | X50: 1.427142857 | Y50: 0.672089976 | Z50: 0 | AA50: 0 | AB50: 0 | AC50: 0 | AD50: 0
B51: Surplus Renewable Not Needed for Battery | E51: =SUM(G51:AD51) -> 29.6682444 | G51: =G34-G35-G45 -> 0 | H51: =H34-H35-H45 -> 0 | I51: 0 | J51: 0 | K51: 0 | L51: 0 | M51: 11.12014643 | N51: 10.24047208 | O51: 8.30762588 | P51: 0 | Q51: 0 | R51: 0 | S51: 0 | T51: 0 | U51: 0 | V51: 0 | W51: 0 | X51: 0 | Y51: 0 | Z51: 0 | AA51: 0 | AB51: 0 | AC51: 0 | AD51: 0
B52: Demand Not Met from Battery Discharge | E52: =SUM(G52:AD52) -> 7.890767167 | G52: =G29-G32-G47 -> 0 | H52: =H29-H32-H47 -> 0 | I52: 0 | J52: 0 | K52: 0 | L52: 0 | M52: 0 | N52: 0 | O52: 0 | P52: 0 | Q52: 0 | R52: 0 | S52: 0 | T52: 0 | U52: 0 | V52: 0 | W52: 0 | X52: 0 | Y52: 0.7550528811 | Z52: 1.427142857 | AA52: 1.427142857 | AB52: 1.427142857 | AC52: 1.427142857 | AD52: 1.427142857
B54: Diesel Capacity | D54: =C7 -> 0 | G54: =$D$54 -> 0 | H54: =$D$54 -> 0 | I54: 0 | J54: 0 | K54: 0 | L54: 0 | M54: 0 | N54: 0 | O54: 0 | P54: 0 | Q54: 0 | R54: 0 | S54: 0 | T54: 0 | U54: 0 | V54: 0 | W54: 0 | X54: 0 | Y54: 0 | Z54: 0 | AA54: 0 | AB54: 0 | AC54: 0 | AD54: 0
B55: Diesel Capacity Dispatched | E55: =SUM(G55:AD55) -> 0 | G55: =MIN(G54,G52) -> 0 | H55: 0 | I55: 0 | J55: 0 | K55: 0 | L55: 0 | M55: 0 | N55: 0 | O55: 0 | P55: 0 | Q55: 0 | R55: 0 | S55: 0 | T55: 0 | U55: 0 | V55: 0 | W55: 0 | X55: 0 | Y55: 0 | Z55: 0 | AA55: 0 | AB55: 0 | AC55: 0 | AD55: 0
B57: Final Un-Met Demand | E57: =SUM(G57:AD57) -> 7.890767167 | G57: =G52-G55 -> 0 | H57: 0 | I57: 0 | J57: 0 | K57: 0 | L57: 0 | M57: 0 | N57: 0 | O57: 0 | P57: 0 | Q57: 0 | R57: 0 | S57: 0 | T57: 0 | U57: 0 | V57: 0 | W57: 0 | X57: 0 | Y57: 0.7550528811 | Z57: 1.427142857 | AA57: 1.427142857 | AB57: 1.427142857 | AC57: 1.427142857 | AD57: 1.427142857
B59: Renewable Lost from Battery Round Trip | D59: =D42 -> 0 | E59: =SUM(G59:AD59) -> 57 | G59: =G45*(1-$D$59) -> 0.8308442186 | H59: 7.928947897 | I59: 4.080810836 | J59: 7.973517236 | K59: 17.04322372 | L59: 17.86296042 | M59: 1.27969567 | N59: 0 | O59: 0 | P59: 0 | Q59: 0 | R59: 0 | S59: 0 | T59: 0 | U59: 0 | V59: 0 | W59: 0 | X59: 0 | Y59: 0 | Z59: 0 | AA59: 0 | AB59: 0 | AC59: 0 | AD59: 0
B60: Net Battery Production | E60: =SUM(G60:AD60) -> 0 | G60: =G47-G45 -> -0.8308442186 | H60: -7.928947897 | I60: -4.080810836 | J60: -7.973517236 | K60: -17.04322372 | L60: -17.86296042 | M60: -1.27969567 | N60: 0 | O60: 0 | P60: 3.188354065 | Q60: 3.612413101 | R60: 5.614 | S60: 6.039 | T60: 6.039 | U60: 10.136 | V60: 10.136 | W60: 10.136 | X60: 1.427142857 | Y60: 0.672089976 | Z60: 0 | AA60: 0 | AB60: 0 | AC60: 0 | AD60: 0
B61: Wasted Renewable Energy | E61: =SUM(G61:AD61) -> 34.22973094 | G61: =G30-G50 -> 0.8745728617 | H61: 8.346260945 | I61: 4.295590353 | J61: 8.393176038 | K61: 17.9402355 | L61: 18.80311623 | M61: 13.05246537 | N61: 10.7794443 | O61: 8.744869347 | P61: -3.188354065 | Q61: -3.612413101 | R61: -5.614 | S61: -6.039 | T61: -6.039 | U61: -10.136 | V61: -10.136 | W61: -10.136 | X61: -1.427142857 | Y61: -0.672089976 | Z61: 0 | AA61: 0 | AB61: 0 | AC61: 0 | AD61: 0
B62: Total Demand Met | E62: =SUM(G62:AD62) -> 64.89076717 | G62: =G47+G52 -> 0 | H62: 0 | I62: 0 | J62: 0 | K62: 0 | L62: 0 | M62: 0 | N62: 0 | O62: 0 | P62: 3.188354065 | Q62: 3.612413101 | R62: 5.614 | S62: 6.039 | T62: 6.039 | U62: 10.136 | V62: 10.136 | W62: 10.136 | X62: 1.427142857 | Y62: 1.427142857 | Z62: 1.427142857 | AA62: 1.427142857 | AB62: 1.427142857 | AC62: 1.427142857 | AD62: 1.427142857
A64: Graphs
G66: =G9 -> 0 | H66: 1 | I66: 2 | J66: 3 | K66: 4 | L66: 5 | M66: 6 | N66: 7 | O66: 8 | P66: 9 | Q66: 10 | R66: 11 | S66: 12 | T66: 13 | U66: 14 | V66: 15 | W66: 16 | X66: 17 | Y66: 18 | Z66: 19 | AA66: 20 | AB66: 21 | AC66: 22 | AD66: 23
B67: Demand | G67: =G11 -> 1.427142857 | H67: 1.427142857 | I67: 1.427142857 | J67: 1.427142857 | K67: 0.72 | L67: 1.41 | M67: 11.18 | N67: 11.18 | O67: 4.1 | P67: 4.1 | Q67: 8.634 | R67: 8.634 | S67: 6.804 | T67: 6.804 | U67: 5.614 | V67: 5.614 | W67: 6.039 | X67: 6.039 | Y67: 10.136 | Z67: 10.136 | AA67: 10.136 | AB67: 1.427142857 | AC67: 1.427142857 | AD67: 1.427142857
G69: =MATCH(G70,26:26,0) -> 27 | H69: 28 | I69: 29 | J69: 30 | K69: 7 | L69: 8 | M69: 9 | N69: 10 | O69: 11 | P69: 12 | Q69: 13 | R69: 14 | S69: 15 | T69: 16 | U69: 17 | V69: 18 | W69: 19 | X69: 20 | Y69: 21 | Z69: 22 | AA69: 23 | AB69: 24 | AC69: 25 | AD69: 26
G70: =G9 -> 0 | H70: 1 | I70: 2 | J70: 3 | K70: 4 | L70: 5 | M70: 6 | N70: 7 | O70: 8 | P70: 9 | Q70: 10 | R70: 11 | S70: 12 | T70: 13 | U70: 14 | V70: 15 | W70: 16 | X70: 17 | Y70: 18 | Z70: 19 | AA70: 20 | AB70: 21 | AC70: 22 | AD70: 23
B71: Demand | G71: =G11 -> 1.427142857 | H71: 1.427142857 | I71: 1.427142857 | J71: 1.427142857 | K71: 0.72 | L71: 1.41 | M71: 11.18 | N71: 11.18 | O71: 4.1 | P71: 4.1 | Q71: 8.634 | R71: 8.634 | S71: 6.804 | T71: 6.804 | U71: 5.614 | V71: 5.614 | W71: 6.039 | X71: 6.039 | Y71: 10.136 | Z71: 10.136 | AA71: 10.136 | AB71: 1.427142857 | AC71: 1.427142857 | AD71: 1.427142857
B72: Hydro Production | G72: =G15 -> 0 | H72: 0 | I72: 0 | J72: 0 | K72: 0 | L72: 0 | M72: 0 | N72: 0 | O72: 0 | P72: 0 | Q72: 0 | R72: 0 | S72: 0 | T72: 0 | U72: 0 | V72: 0 | W72: 0 | X72: 0 | Y72: 0 | Z72: 0 | AA72: 0 | AB72: 0 | AC72: 0 | AD72: 0
B73: Solar Production | G73: =G14 -> 0 | H73: 0 | I73: 0 | J73: 0 | K73: 1.594572862 | L73: 9.756260945 | M73: 15.47559035 | N73: 19.57317604 | O73: 22.0402355 | P73: 22.90311623 | Q73: 21.68646537 | R73: 19.4134443 | S73: 15.54886935 | T73: 3.615645935 | U73: 2.001586899 | V73: 0 | W73: 0 | X73: 0 | Y73: 0 | Z73: 0 | AA73: 0 | AB73: 0 | AC73: 0 | AD73: 0
B74: Diesel Production | G74: =INDEX(55:55,G69) -> 0 | H74: =INDEX(55:55,H69) -> 0 | I74: 0 | J74: 0 | K74: 0 | L74: 0 | M74: 0 | N74: 0 | O74: 0 | P74: 0 | Q74: 0 | R74: 0 | S74: 0 | T74: 0 | U74: 0 | V74: 0 | W74: 0 | X74: 0 | Y74: 0 | Z74: 0 | AA74: 0 | AB74: 0 | AC74: 0 | AD74: 0
B75: Battery Discharge | G75: =INDEX(47:47,G$69) -> 0 | H75: =INDEX(47:47,H$69) -> 0 | I75: 0 | J75: 0 | K75: 0 | L75: 0 | M75: 0 | N75: 0 | O75: 0 | P75: 0 | Q75: 0 | R75: 0 | S75: 0 | T75: 3.188354065 | U75: 3.612413101 | V75: 5.614 | W75: 6.039 | X75: 6.039 | Y75: 10.136 | Z75: 10.136 | AA75: 10.136 | AB75: 1.427142857 | AC75: 0.672089976 | AD75: 0
B76: Battery Charge | G76: =-INDEX(45:45,G$69) -> 0 | H76: =-INDEX(45:45,H$69) -> 0 | I76: 0 | J76: 0 | K76: -0.8308442186 | L76: -7.928947897 | M76: -4.080810836 | N76: -7.973517236 | O76: -17.04322372 | P76: -17.86296042 | Q76: -1.27969567 | R76: 0 | S76: 0 | T76: 0 | U76: 0 | V76: 0 | W76: 0 | X76: 0 | Y76: 0 | Z76: 0 | AA76: 0 | AB76: 0 | AC76: 0 | AD76: 0
B77: Unserved Energy | G77: =INDEX(57:57,G69) -> 1.427142857 | H77: =INDEX(57:57,H69) -> 1.427142857 | I77: 1.427142857 | J77: 1.427142857 | K77: 0 | L77: 0 | M77: 0 | N77: 0 | O77: 0 | P77: 0 | Q77: 0 | R77: 0 | S77: 0 | T77: 0 | U77: 0 | V77: 0 | W77: 0 | X77: 0 | Y77: 0 | Z77: 0 | AA77: 0 | AB77: 0 | AC77: 0.7550528811 | AD77: 1.427142857
G79: =G26 -> 4 | H79: 5 | I79: 6 | J79: 7 | K79: 8 | L79: 9 | M79: 10 | N79: 11 | O79: 12 | P79: 13 | Q79: 14 | R79: 15 | S79: 16 | T79: 17 | U79: 18 | V79: 19 | W79: 20 | X79: 21 | Y79: 22 | Z79: 23 | AA79: 0 | AB79: 1 | AC79: 2 | AD79: 3
B80: Charge | G80: =G45 -> 0.8308442186 | H80: 7.928947897 | I80: 4.080810836 | J80: 7.973517236 | K80: 17.04322372 | L80: 17.86296042 | M80: 1.27969567 | N80: 0 | O80: 0 | P80: 0 | Q80: 0 | R80: 0 | S80: 0 | T80: 0 | U80: 0 | V80: 0 | W80: 0 | X80: 0 | Y80: 0 | Z80: 0 | AA80: 0 | AB80: 0 | AC80: 0 | AD80: 0
B81: Discharge | G81: =G47 -> 0 | H81: 0 | I81: 0 | J81: 0 | K81: 0 | L81: 0 | M81: 0 | N81: 0 | O81: 0 | P81: 3.188354065 | Q81: 3.612413101 | R81: 5.614 | S81: 6.039 | T81: 6.039 | U81: 10.136 | V81: 10.136 | W81: 10.136 | X81: 1.427142857 | Y81: 0.672089976 | Z81: 0 | AA81: 0 | AB81: 0 | AC81: 0 | AD81: 0
G83: =G79 -> 4 | H83: =H79 -> 5 | I83: 6 | J83: 7 | K83: 8 | L83: 9 | M83: 10 | N83: 11 | O83: 12 | P83: 13 | Q83: 14 | R83: 15 | S83: 16 | T83: 17 | U83: 18 | V83: 19 | W83: 20 | X83: 21 | Y83: 22 | Z83: 23 | AA83: 0 | AB83: 1 | AC83: 2 | AD83: 3
B84: Load | G84: =G11 -> 1.427142857 | H84: 1.427142857 | I84: 1.427142857 | J84: 1.427142857 | K84: 0.72 | L84: 1.41 | M84: 11.18 | N84: 11.18 | O84: 4.1 | P84: 4.1 | Q84: 8.634 | R84: 8.634 | S84: 6.804 | T84: 6.804 | U84: 5.614 | V84: 5.614 | W84: 6.039 | X84: 6.039 | Y84: 10.136 | Z84: 10.136 | AA84: 10.136 | AB84: 1.427142857 | AC84: 1.427142857 | AD84: 1.427142857
B85: Production | G85: =G14 -> 0 | H85: 0 | I85: 0 | J85: 0 | K85: 1.594572862 | L85: 9.756260945 | M85: 15.47559035 | N85: 19.57317604 | O85: 22.0402355 | P85: 22.90311623 | Q85: 21.68646537 | R85: 19.4134443 | S85: 15.54886935 | T85: 3.615645935 | U85: 2.001586899 | V85: 0 | W85: 0 | X85: 0 | Y85: 0 | Z85: 0 | AA85: 0 | AB85: 0 | AC85: 0 | AD85: 0
G87: =G83 -> 4 | H87: =H83 -> 5 | I87: 6 | J87: 7 | K87: 8 | L87: 9 | M87: 10 | N87: 11 | O87: 12 | P87: 13 | Q87: 14 | R87: 15 | S87: 16 | T87: 17 | U87: 18 | V87: 19 | W87: 20 | X87: 21 | Y87: 22 | Z87: 23 | AA87: 0 | AB87: 1 | AC87: 2 | AD87: 3
B88: Battery Balance | G88: =INDEX(48:48,MATCH(G87,9:9,0)) -> 37.85734391 | H88: 55.72030433 | I88: 57 | J88: 57 | K88: 57 | L88: 53.81164593 | M88: 50.19923283 | N88: 44.58523283 | O88: 38.54623283 | P88: 32.50723283 | Q88: 22.37123283 | R88: 12.23523283 | S88: 2.099232833 | T88: 0.672089976 | U88: 0 | V88: 0 | W88: 0 | X88: 0 | Y88: 0 | Z88: 0 | AA88: 0.8308442186 | AB88: 8.759792116 | AC88: 12.84060295 | AD88: 20.81412019
B110: Solar Capacity - Watt | C110: =Cap -> 29 | D110: Demand - Wh | E110: =E11 -> 127.27 | H110: Battery Wh | I110: =E18 -> 64.89076717

Sheet Distribution
A1: Distribution Quantity
B2: Three Phase Wires | E2: meters
B3: Cost per meter | E3: USD/Meter
D5: 3phase Distribution branch point to point ( refer to
D6: distribution map) 3x50 +54.6mm2 twisted cable
D7: m | E7: 713.94
D8: 3phase distribution branch point to point 18( refer to
D9: distribution map) 3x50 +54.6mm2 twisted cable
D10: m | E10: 443.31
D11: total length of other branches feeding different corners
D12: of the villages will be 3x35 +54.6mm2 twisted cable
D13: m | E13: 1674.07
D14: service connection or customer connection by taking
D15: average of 10m cable to each customer
D16: m | E16: 1620
D18: Total Length | E18: =SUM(E5:E16) -> 4451.32
D20: Distribution line USD | E20: 47341
D21: Office equipment USD | E21: 0
D22: Other non construction costs USD | E22: 6295
D23: Total Distribution Cost | E23: =SUM(E20:E22) -> 53636
D26: Cost per Meter (USD/Meter) | E26: =E23/E18 -> 12.04945949
B30: Investment Cost, Distribution
B31: Low Voltage Distribution Line, Distance | Q31: km | S31: 2
B32: Low Voltage Distribution Line, Cost | Q32: USD/km | S32: 7000
C33: Transformer
D34: Number of transformers | Q34: unit | S34: 0 | V34: Guidance [Ungroup to reveal] | W34: Transformers would not be required for small mini-grids. They would only be needed for sizes upwards of 100 kW
D35: Cost of transformer | Q35: USD/unit | S35: 0
C37: End-User Equipment | Q37: USD/end-user | S37: 170 | V37: Guidance [Ungroup to reveal] | W37: Model assumes appliances are purchased/financed by the end-user and are not part of the modelling exercise.
D38: Labor Cost | Q38: USD/end-user | S38: 20
D39: Wires | Q39: USD/end-user | S39: 120
D40: Meter | Q40: USD/end-user | S40: 30
C41: Distribution network lifetime | Q41: years | S41: 20
B43: Depreciable Base of Distribution & Generation Assets | Q43: % | S43: 1

Sheet Financing Assumptions
A3: Finance
B4: Target IRR | E4: % | F4: =G4/1000 -> 0.13 | G4: 130 | H4: 70
B5: Solar Life | E5: Years | F5: 10
B6: Battery Life | E6: Years | F6: 10
A9: Hydro LCOE
B10: Cost per kW | E10: USD/kW | G10: =Hydro!F24 -> 3853
B11: Cost of Capital | E11: %
B12: Inflation Rate | E12: %
B13: Real Carrying Charge | E13: %
B14: Carrying Charge Rate | E14: %
B16: Annual Capital Cost | E16: USD/kWy
B18: O&M Cost Percent | E18: %
B19: O&M Cost/kWy | E19: USD/kWy
B21: Total Costs | E21: USD/kWy
B22: Total Costs | E22: USD/MWH
B25: Debt Funding Percent | E25: %
B26: Tenure (Months) | E26: Month
B27: Funding Interest Rate | E27: %
B28: Credit Spread and Fees | E28: %

Sheet Financial Model
A1: Timeline | G1: Price Result | H1: =F108 -> 0.1542292441
B3: Period | G3: 0 | H3: 1 | I3: 2 | J3: 3 | K3: 4 | L3: 5 | M3: 6 | N3: 7 | O3: 8 | P3: 9 | Q3: 10 | R3: 11 | S3: 12 | T3: 13 | U3: 14 | V3: 15 | W3: 16 | X3: 17 | Y3: 18 | Z3: 19 | AA3: 20 | AB3: 21 | AC3: 22 | AD3: 23 | AE3: 24 | AF3: 25 | AG3: 26 | AH3: 27 | AI3: 28 | AJ3: 29 | AK3: 30 | AL3: 31 | AM3: 32 | AN3: 33 | AO3: 34 | AP3: 35 | AQ3: 36 | AR3: 37 | AS3: 38 | AT3: 39 | AU3: 40
B4: Life Flag | F4: 30 | H4: =H3<=$F$4 -> TRUE | I4: =I3<=$F$4 -> TRUE | J4: TRUE | K4: TRUE | L4: TRUE | M4: TRUE | N4: TRUE | O4: TRUE | P4: TRUE | Q4: TRUE | R4: TRUE | S4: TRUE | T4: TRUE | U4: TRUE | V4: TRUE | W4: TRUE | X4: TRUE | Y4: TRUE | Z4: TRUE | AA4: TRUE | AB4: TRUE | AC4: TRUE | AD4: TRUE | AE4: TRUE | AF4: TRUE | AG4: TRUE | AH4: TRUE | AI4: TRUE | AJ4: TRUE | AK4: TRUE | AL4: FALSE | AM4: FALSE | AN4: FALSE | AO4: FALSE | AP4: FALSE | AQ4: FALSE | AR4: FALSE | AS4: FALSE | AT4: FALSE | AU4: FALSE
B5: Battery Replacement | F5: =F10+1 -> 31 | H5: =MOD(H3,$F$5)=0 -> FALSE | I5: =MOD(I3,$F$5)=0 -> FALSE | J5: FALSE | K5: FALSE | L5: FALSE | M5: FALSE | N5: FALSE | O5: FALSE | P5: FALSE | Q5: FALSE | R5: FALSE | S5: FALSE | T5: FALSE | U5: FALSE | V5: FALSE | W5: FALSE | X5: FALSE | Y5: FALSE | Z5: FALSE | AA5: FALSE | AB5: FALSE | AC5: FALSE | AD5: FALSE | AE5: FALSE | AF5: FALSE | AG5: FALSE | AH5: FALSE | AI5: FALSE | AJ5: FALSE | AK5: FALSE | AL5: TRUE | AM5: FALSE | AN5: FALSE | AO5: FALSE | AP5: FALSE | AQ5: FALSE | AR5: FALSE | AS5: FALSE | AT5: FALSE | AU5: FALSE
A7: Assumptions
C8: Timing
D9: Lifetime of Solar | E9: Years | F9: ='Financing Assumptions'!F5 -> 10
D10: Battery Replacement | E10: Years | F10: 30
C12: Macro-Economic
D13: Exchange Rate | E13: FRW/USD | F13: 950
D14: USD Inflation Rate | E14: % p.a. | F14: 0.02
C16: Load and Solar
D17: Load Required | E17: kWh | F17: ='Demand and Supply Dispatch'!E11 -> 127.27
D18: Maximum Load | E18: kW | F18: ='Demand and Supply Dispatch'!D11 -> 11.18
D19: Load Factor | E19: % | F19: =F17/24/F18 -> 0.4743217054
D20: Demand Met | E20: kWh | F20: ='Demand and Supply Dispatch'!E62 -> 64.89076717
D21: Unserved Energy | E21: kWh | F21: ='Demand and Supply Dispatch'!E57 -> 7.890767167
D23: Solar Capacity | E23: kW | F23: ='Solar and Battery'!E14 -> 29
D24: Hydro Capacity | E24: kW | F24: =Hydro!F7 -> 0
D25: Diesel Capacity | E25: kW | F25: =Diesel!F7 -> 0
D26: Battery Capacity | E26: kWh | F26: ='Solar and Battery'!E17 -> 57
D27: Total Generating Capacity | E27: kWh | F27: =SUM(F23:F26) -> 86
C29: Production per Day
D30: Solar Production | E30: kWh | F30: ='Demand and Supply Dispatch'!E14 -> 153.6089638
D31: Hydro Production | E31: kWh | F31: ='Demand and Supply Dispatch'!E15 -> 0
D32: Diesel Production | E32: kWh | F32: ='Demand and Supply Dispatch'!E55 -> 0
D33: Net Battery Production | E33: kWh | F33: ='Demand and Supply Dispatch'!E60 -> 0
D34: Total Energy Produced | E34: kWh | F34: =SUM(F30:F33) -> 153.6089638
D36: Capacity Factor | F36: =IFERROR(F30/24/F23,0) -> 0.2207025342
D37: Battery Round Trip Efficiency | E37: % | F37: =Round_Trip -> 0.95
D38: Solar Capacity with Battery Adjustment | E38: kW | F38: =F23/F37 -> 30.52631579
C40: Battery Capacity
D41: Battery Discharge Capacity | E41: kWh | F41: ='Solar and Battery'!$E$17 -> 57
D42: Depth of Discharge Limit | E42: % | F42: =Depth_Discharge -> 0.05
D43: Capacity Required Adjusted for Depth of Discharge | E43: kWh | F43: =F41*(1+F42) -> 59.85
C45: Capital Cost
D46: Cost of Hydro | E46: USD/kW | F46: =Hydro!F24 -> 3853
D47: Cost of Solar | E47: USD/kW | F47: =Solar_Cost -> 890
D48: Cost of Diesel | E48: USD/kW | F48: =Diesel!F19 -> 650
D49: Battery Current | E49: USD/kWh | F49: =Battery_Cost -> 130
D50: Battery - Replacement 1 | E50: USD/kWh | F50: =F49 -> 130
D51: Battery - Replacement 2 | E51: USD/kWh | F51: =F50 -> 130
C53: Total Cost | F53: USD | G53: RFW
D54: Total Cost of Hydro | E54: USD/FRW | F54: =F46*F24 -> 0 | G54: =F54*$F$13 -> 0
D55: Total Cost of Solar | E55: USD/FRW | F55: =F47*F38 -> 27168.42105 | G55: =F55*$F$13 -> 25810000
D56: Total Battery Cost | E56: USD/FRW | F56: =F49*F41 -> 7410 | G56: =F56*$F$13 -> 7039500
D57: Total Diesel Cost | E57: USD/FRW | F57: =F48*F25 -> 0 | G57: =F57*$F$13 -> 0
D58: Total Cost | E58: USD/FRW | F58: =SUM(F54:F57) -> 34578.42105 | G58: =F58*$F$13 -> 32849500
D59: Total Cost/kW | E59: USD/FRW | F59: =IFERROR(F58/F38,0) -> 1132.741379 | G59: =IFERROR(G58/F23*1000,0) -> 1132741379
D60: kWh | E60: kWh | F60: =F41 -> 57 | G60: =F60 -> 57
D61: Total Cost/kWh | E61: USD/FRW | F61: =IFERROR(F58/F60,0) -> 606.6389658 | G61: =IFERROR(G58/G60*1000,0) -> 576307017.5
C63: O&M Cost
D64: O&M on Solar | E64: USD/kWy | F64: 10
D65: O&M on Battery | E65: USD/kWhy | F65: 0.2
C67: Distribution
D68: Total Length of Distribution | E68: metre | F68: =Distribution!E16 -> 1620
D69: Average Cost per Meter | E69: USD/m | F69: =Distribution!E26 -> 12.04945949
D70: Total Distribution Cost | E70: USD | F70: =F68*F69 -> 19520.12437
C72: Pricing
D73: Required IRR | E73: % | F73: ='Financing Assumptions'!$F$4 -> 0.13
D74: Price Derived | E74: USD/kWh | F74: 0.1542292441 | G74: Price | H74: USD/MWH
D75: Price Derived | E75: FRW/kWh | F75: =F74*F13 -> 146.5177819
D76: NPV | E76: USD | F76: =F136 -> -3459.94672 | G76: NPV
C78: Kerosene
D79: Conversion | E79: L/kWh | F79: =Kerosene!F9 -> 0.09583395389
D80: Cost/Litre | E80: USD/Litre | F80: =Kerosene!F17 -> 1.115789474
D81: Indoor Pollution Cost | E81: USD/Litre
D82: Quality Cost | E82: USD/Litre
A84: Financial Model
B85: Hydro Life | E85: =F24>0 -> FALSE | F85: =Hydro!F28 -> 30 | H85: =(H$3<=$F85)*$E85 -> 0 | I85: =(I$3<=$F85)*$E85 -> 0 | J85: 0 | K85: 0 | L85: 0 | M85: 0 | N85: 0 | O85: 0 | P85: 0 | Q85: 0 | R85: 0 | S85: 0 | T85: 0 | U85: 0 | V85: 0 | W85: 0 | X85: 0 | Y85: 0 | Z85: 0 | AA85: 0 | AB85: 0 | AC85: 0 | AD85: 0 | AE85: 0 | AF85: 0 | AG85: 0 | AH85: 0 | AI85: 0 | AJ85: 0 | AK85: 0 | AL85: 0 | AM85: 0 | AN85: 0 | AO85: 0 | AP85: 0 | AQ85: 0 | AR85: 0 | AS85: 0 | AT85: 0 | AU85: 0
B86: Solar Life | E86: =F23>0 -> TRUE | F86: ='Consumer Economics'!K19 -> 10 | H86: =(H$3<=$F86)*$E86 -> 1 | I86: 1 | J86: 1 | K86: 1 | L86: 1 | M86: 1 | N86: 1 | O86: 1 | P86: 1 | Q86: 1 | R86: 0 | S86: 0 | T86: 0 | U86: 0 | V86: 0 | W86: 0 | X86: 0 | Y86: 0 | Z86: 0 | AA86: 0 | AB86: 0 | AC86: 0 | AD86: 0 | AE86: 0 | AF86: 0 | AG86: 0 | AH86: 0 | AI86: 0 | AJ86: 0 | AK86: 0 | AL86: 0 | AM86: 0 | AN86: 0 | AO86: 0 | AP86: 0 | AQ86: 0 | AR86: 0 | AS86: 0 | AT86: 0 | AU86: 0
B87: Battery Life | E87: =F26>0 -> TRUE | F87: ='Consumer Economics'!K18 -> 10 | H87: 1 | I87: 1 | J87: 1 | K87: 1 | L87: 1 | M87: 1 | N87: 1 | O87: 1 | P87: 1 | Q87: 1 | R87: 0 | S87: 0 | T87: 0 | U87: 0 | V87: 0 | W87: 0 | X87: 0 | Y87: 0 | Z87: 0 | AA87: 0 | AB87: 0 | AC87: 0 | AD87: 0 | AE87: 0 | AF87: 0 | AG87: 0 | AH87: 0 | AI87: 0 | AJ87: 0 | AK87: 0 | AL87: 0 | AM87: 0 | AN87: 0 | AO87: 0 | AP87: 0 | AQ87: 0 | AR87: 0 | AS87: 0 | AT87: 0 | AU87: 0
B88: Diesel Life | E88: =F25>0 -> FALSE | F88: =Diesel!F24 -> 20 | H88: 0 | I88: 0 | J88: 0 | K88: 0 | L88: 0 | M88: 0 | N88: 0 | O88: 0 | P88: 0 | Q88: 0 | R88: 0 | S88: 0 | T88: 0 | U88: 0 | V88: 0 | W88: 0 | X88: 0 | Y88: 0 | Z88: 0 | AA88: 0 | AB88: 0 | AC88: 0 | AD88: 0 | AE88: 0 | AF88: 0 | AG88: 0 | AH88: 0 | AI88: 0 | AJ88: 0 | AK88: 0 | AL88: 0 | AM88: 0 | AN88: 0 | AO88: 0 | AP88: 0 | AQ88: 0 | AR88: 0 | AS88: 0 | AT88: 0 | AU88: 0
B89: Demand Life | H89: =OR(H85:H88) -> TRUE | I89: =OR(I85:I88) -> TRUE | J89: TRUE | K89: TRUE | L89: TRUE | M89: TRUE | N89: TRUE | O89: TRUE | P89: TRUE | Q89: TRUE | R89: FALSE | S89: FALSE | T89: FALSE | U89: FALSE | V89: FALSE | W89: FALSE | X89: FALSE | Y89: FALSE | Z89: FALSE | AA89: FALSE | AB89: FALSE | AC89: FALSE | AD89: FALSE | AE89: FALSE | AF89: FALSE | AG89: FALSE | AH89: FALSE | AI89: FALSE | AJ89: FALSE | AK89: FALSE | AL89: FALSE | AM89: FALSE | AN89: FALSE | AO89: FALSE | AP89: FALSE | AQ89: FALSE | AR89: FALSE | AS89: FALSE | AT89: FALSE | AU89: FALSE
B91: Capacity and Production
D92: Total Load Met | E92: kWh/year | F92: =F20 -> 64.89076717 | H92: =$F$92*365*H4 -> 23685.13002 | I92: 23685.13002 | J92: 23685.13002 | K92: 23685.13002 | L92: 23685.13002 | M92: 23685.13002 | N92: 23685.13002 | O92: 23685.13002 | P92: 23685.13002 | Q92: 23685.13002 | R92: 23685.13002 | S92: 23685.13002 | T92: 23685.13002 | U92: 23685.13002 | V92: 23685.13002 | W92: 23685.13002 | X92: 23685.13002 | Y92: 23685.13002 | Z92: 23685.13002 | AA92: 23685.13002 | AB92: 23685.13002 | AC92: 23685.13002 | AD92: 23685.13002 | AE92: 23685.13002 | AF92: 23685.13002 | AG92: 23685.13002 | AH92: 23685.13002 | AI92: 23685.13002 | AJ92: 23685.13002 | AK92: 23685.13002 | AL92: 0 | AM92: 0 | AN92: 0 | AO92: 0 | AP92: 0 | AQ92: 0 | AR92: 0 | AS92: 0 | AT92: 0 | AU92: 0
D93: Hydro Energy | E93: kWh/Year | F93: =F31 -> 0 | H93: =$F$93*365*H85 -> 0 | I93: =$F$93*365*I85 -> 0 | J93: 0 | K93: 0 | L93: 0 | M93: 0 | N93: 0 | O93: 0 | P93: 0 | Q93: 0 | R93: 0 | S93: 0 | T93: 0 | U93: 0 | V93: 0 | W93: 0 | X93: 0 | Y93: 0 | Z93: 0 | AA93: 0 | AB93: 0 | AC93: 0 | AD93: 0 | AE93: 0 | AF93: 0 | AG93: 0 | AH93: 0 | AI93: 0 | AJ93: 0 | AK93: 0 | AL93: 0 | AM93: 0 | AN93: 0 | AO93: 0 | AP93: 0 | AQ93: 0 | AR93: 0 | AS93: 0 | AT93: 0 | AU93: 0
D94: Solar Energy | E94: kWh/Year | F94: =F30 -> 153.6089638 | H94: =$F$94*H4 -> 153.6089638 | I94: 153.6089638 | J94: 153.6089638 | K94: 153.6089638 | L94: 153.6089638 | M94: 153.6089638 | N94: 153.6089638 | O94: 153.6089638 | P94: 153.6089638 | Q94: 153.6089638 | R94: 153.6089638 | S94: 153.6089638 | T94: 153.6089638 | U94: 153.6089638 | V94: 153.6089638 | W94: 153.6089638 | X94: 153.6089638 | Y94: 153.6089638 | Z94: 153.6089638 | AA94: 153.6089638 | AB94: 153.6089638 | AC94: 153.6089638 | AD94: 153.6089638 | AE94: 153.6089638 | AF94: 153.6089638 | AG94: 153.6089638 | AH94: 153.6089638 | AI94: 153.6089638 | AJ94: 153.6089638 | AK94: 153.6089638 | AL94: 0 | AM94: 0 | AN94: 0 | AO94: 0 | AP94: 0 | AQ94: 0 | AR94: 0 | AS94: 0 | AT94: 0 | AU94: 0
D95: Diesel Energy | E95: kWh/Year | F95: =F25 -> 0
D96: Battery Capacity without Degradation | E96: kWh/year | F96: =F41 -> 57 | H96: =$F$96*H4 -> 57 | I96: 57 | J96: 57 | K96: 57 | L96: 57 | M96: 57 | N96: 57 | O96: 57 | P96: 57 | Q96: 57 | R96: 57 | S96: 57 | T96: 57 | U96: 57 | V96: 57 | W96: 57 | X96: 57 | Y96: 57 | Z96: 57 | AA96: 57 | AB96: 57 | AC96: 57 | AD96: 57 | AE96: 57 | AF96: 57 | AG96: 57 | AH96: 57 | AI96: 57 | AJ96: 57 | AK96: 57 | AL96: 0 | AM96: 0 | AN96: 0 | AO96: 0 | AP96: 0 | AQ96: 0 | AR96: 0 | AS96: 0 | AT96: 0 | AU96: 0
D97: Battery Production without Degradation | E97: kWh/year | F97: =F41 -> 57 | H97: =$F$97*365 -> 20805 | I97: =$F$97*365 -> 20805 | J97: 20805 | K97: 20805 | L97: 20805 | M97: 20805 | N97: 20805 | O97: 20805 | P97: 20805 | Q97: 20805 | R97: 20805 | S97: 20805 | T97: 20805 | U97: 20805 | V97: 20805 | W97: 20805 | X97: 20805 | Y97: 20805 | Z97: 20805 | AA97: 20805 | AB97: 20805 | AC97: 20805 | AD97: 20805 | AE97: 20805 | AF97: 20805 | AG97: 20805 | AH97: 20805 | AI97: 20805 | AJ97: 20805 | AK97: 20805 | AL97: 20805 | AM97: 20805 | AN97: 20805 | AO97: 20805 | AP97: 20805 | AQ97: 20805 | AR97: 20805 | AS97: 20805 | AT97: 20805 | AU97: 20805
B99: Captial Expenditure
D100: Hydro Capital Expenditure | E100: USD | F100: =F54 -> 0 | G100: =F100 -> 0
D101: Solar Capital Expenditure | E101: USD | F101: =F55 -> 27168.42105 | G101: =F101 -> 27168.42105
D102: Battery Capital Expenditure | E102: USD | F102: =F56 -> 7410 | G102: =F102 -> 7410
D103: Diesel Capital Expenditure | E103: USD | F103: =F57 -> 0 | G103: =F103 -> 0
D104: Distribution Capital Expenditure | E104: USD | F104: =F70*H104 -> 0 | G104: =F104 -> 0 | H104: ='Minigrid Control'!$F$85 -> FALSE
D105: Total | E105: USD | F105: =SUM(F100:F104) -> 34578.42105 | G105: =SUM(G100:G104) -> 34578.42105
B107: Revenues and O&M Expenses
D108: Price/kWh | E108: USD/kWh | F108: =F74 -> 0.1542292441 | H108: =$F$108 -> 0.1542292441 | I108: =$F$108 -> 0.1542292441 | J108: 0.1542292441 | K108: 0.1542292441 | L108: 0.1542292441 | M108: 0.1542292441 | N108: 0.1542292441 | O108: 0.1542292441 | P108: 0.1542292441 | Q108: 0.1542292441 | R108: 0.1542292441 | S108: 0.1542292441 | T108: 0.1542292441 | U108: 0.1542292441 | V108: 0.1542292441 | W108: 0.1542292441 | X108: 0.1542292441 | Y108: 0.1542292441 | Z108: 0.1542292441 | AA108: 0.1542292441 | AB108: 0.1542292441 | AC108: 0.1542292441 | AD108: 0.1542292441 | AE108: 0.1542292441 | AF108: 0.1542292441 | AG108: 0.1542292441 | AH108: 0.1542292441 | AI108: 0.1542292441 | AJ108: 0.1542292441 | AK108: 0.1542292441 | AL108: 0.1542292441 | AM108: 0.1542292441 | AN108: 0.1542292441 | AO108: 0.1542292441 | AP108: 0.1542292441 | AQ108: 0.1542292441 | AR108: 0.1542292441 | AS108: 0.1542292441 | AT108: 0.1542292441 | AU108: 0.1542292441
D109: Inflation Index | E109: Index | F109: =F14 -> 0.02 | G109: 1 | H109: =G109*(1+$F$109) -> 1.02 | I109: =H109*(1+$F$109) -> 1.0404 | J109: 1.061208 | K109: 1.08243216 | L109: 1.104080803 | M109: 1.126162419 | N109: 1.148685668 | O109: 1.171659381 | P109: 1.195092569 | Q109: 1.21899442 | R109: 1.243374308 | S109: 1.268241795 | T109: 1.29360663 | U109: 1.319478763 | V109: 1.345868338 | W109: 1.372785705 | X109: 1.400241419 | Y109: 1.428246248 | Z109: 1.456811173 | AA109: 1.485947396 | AB109: 1.515666344 | AC109: 1.545979671 | AD109: 1.576899264 | AE109: 1.608437249 | AF109: 1.640605994 | AG109: 1.673418114 | AH109: 1.706886477 | AI109: 1.741024206 | AJ109: 1.77584469 | AK109: 1.811361584 | AL109: 1.847588816 | AM109: 1.884540592 | AN109: 1.922231404 | AO109: 1.960676032 | AP109: 1.999889553 | AQ109: 2.039887344 | AR109: 2.080685091 | AS109: 2.122298792 | AT109: 2.164744768 | AU109: 2.208039664
D110: Price/kWh Inflated | E110: USD/kWh | H110: =H108*H109 -> 0.157313829 | I110: =I108*I109 -> 0.1604601056 | J110: 0.1636693077 | K110: 0.1669426939 | L110: 0.1702815477 | M110: 0.1736871787 | N110: 0.1771609223 | O110: 0.1807041407 | P110: 0.1843182235 | Q110: 0.188004588 | R110: 0.1917646798 | S110: 0.1955999734 | T110: 0.1995119728 | U110: 0.2035022123 | V110: 0.2075722565 | W110: 0.2117237017 | X110: 0.2159581757 | Y110: 0.2202773392 | Z110: 0.224682886 | AA110: 0.2291765437 | AB110: 0.2337600746 | AC110: 0.2384352761 | AD110: 0.2432039816 | AE110: 0.2480680612 | AF110: 0.2530294225 | AG110: 0.2580900109 | AH110: 0.2632518111 | AI110: 0.2685168473 | AJ110: 0.2738871843 | AK110: 0.279364928 | AL110: =AL108*AL109 -> 0.2849522265 | AM110: 0.2906512711 | AN110: 0.2964642965 | AO110: 0.3023935824 | AP110: 0.3084414541 | AQ110: 0.3146102832 | AR110: 0.3209024888 | AS110: 0.3273205386 | AT110: 0.3338669494 | AU110: 0.3405442884
D112: Annual Demand Met | E112: kWh | H112: =H92 -> 23685.13002 | I112: =I92 -> 23685.13002 | J112: 23685.13002 | K112: 23685.13002 | L112: 23685.13002 | M112: 23685.13002 | N112: 23685.13002 | O112: 23685.13002 | P112: 23685.13002 | Q112: 23685.13002 | R112: 23685.13002 | S112: 23685.13002 | T112: 23685.13002 | U112: 23685.13002 | V112: 23685.13002 | W112: 23685.13002 | X112: 23685.13002 | Y112: 23685.13002 | Z112: 23685.13002 | AA112: 23685.13002 | AB112: 23685.13002 | AC112: 23685.13002 | AD112: 23685.13002 | AE112: 23685.13002 | AF112: 23685.13002 | AG112: 23685.13002 | AH112: 23685.13002 | AI112: 23685.13002 | AJ112: 23685.13002 | AK112: 23685.13002 | AL112: 0 | AM112: 0 | AN112: 0 | AO112: 0 | AP112: 0 | AQ112: 0 | AR112: 0 | AS112: 0 | AT112: 0 | AU112: 0
D114: Revenues | E114: USD | H114: =H110*H112 -> 3725.998494 | I114: =I110*I112 -> 3800.518464 | J114: 3876.528833 | K114: 3954.05941 | L114: 4033.140598 | M114: 4113.80341 | N114: 4196.079478 | O114: 4280.001067 | P114: 4365.601089 | Q114: 4452.913111 | R114: 4541.971373 | S114: 4632.8108 | T114: 4725.467016 | U114: 4819.976357 | V114: 4916.375884 | W114: 5014.703401 | X114: 5114.997469 | Y114: 5217.297419 | Z114: 5321.643367 | AA114: 5428.076234 | AB114: 5536.637759 | AC114: 5647.370514 | AD114: 5760.317925 | AE114: 5875.524283 | AF114: 5993.034769 | AG114: 6112.895464 | AH114: 6235.153373 | AI114: 6359.856441 | AJ114: 6487.05357 | AK114: 6616.794641 | AL114: 0 | AM114: 0 | AN114: 0 | AO114: 0 | AP114: 0 | AQ114: 0 | AR114: 0 | AS114: 0 | AT114: 0 | AU114: 0
D116: Diesel Production | E116: kWh | H116: ='Demand and Supply Dispatch'!$G$55 -> 0 | I116: ='Demand and Supply Dispatch'!$G$55 -> 0 | J116: ='Demand and Supply Dispatch'!$G$55 -> 0 | K116: ='Demand and Supply Dispatch'!$G$55 -> 0 | L116: ='Demand and Supply Dispatch'!$G$55 -> 0 | M116: ='Demand and Supply Dispatch'!$G$55 -> 0 | N116: ='Demand and Supply Dispatch'!$G$55 -> 0 | O116: ='Demand and Supply Dispatch'!$G$55 -> 0 | P116: ='Demand and Supply Dispatch'!$G$55 -> 0 | Q116: ='Demand and Supply Dispatch'!$G$55 -> 0 | R116: ='Demand and Supply Dispatch'!$G$55 -> 0 | S116: ='Demand and Supply Dispatch'!$G$55 -> 0 | T116: ='Demand and Supply Dispatch'!$G$55 -> 0 | U116: ='Demand and Supply Dispatch'!$G$55 -> 0 | V116: ='Demand and Supply Dispatch'!$G$55 -> 0 | W116: ='Demand and Supply Dispatch'!$G$55 -> 0 | X116: ='Demand and Supply Dispatch'!$G$55 -> 0 | Y116: ='Demand and Supply Dispatch'!$G$55 -> 0 | Z116: ='Demand and Supply Dispatch'!$G$55 -> 0 | AA116: ='Demand and Supply Dispatch'!$G$55 -> 0 | AB116: ='Demand and Supply Dispatch'!$G$55 -> 0 | AC116: ='Demand and Supply Dispatch'!$G$55 -> 0 | AD116: ='Demand and Supply Dispatch'!$G$55 -> 0 | AE116: ='Demand and Supply Dispatch'!$G$55 -> 0 | AF116: ='Demand and Supply Dispatch'!$G$55 -> 0 | AG116: ='Demand and Supply Dispatch'!$G$55 -> 0 | AH116: ='Demand and Supply Dispatch'!$G$55 -> 0 | AI116: ='Demand and Supply Dispatch'!$G$55 -> 0 | AJ116: ='Demand and Supply Dispatch'!$G$55 -> 0 | AK116: ='Demand and Supply Dispatch'!$G$55 -> 0 | AL116: ='Demand and Supply Dispatch'!$G$55 -> 0 | AM116: ='Demand and Supply Dispatch'!$G$55 -> 0 | AN116: ='Demand and Supply Dispatch'!$G$55 -> 0 | AO116: ='Demand and Supply Dispatch'!$G$55 -> 0 | AP116: ='Demand and Supply Dispatch'!$G$55 -> 0 | AQ116: ='Demand and Supply Dispatch'!$G$55 -> 0 | AR116: ='Demand and Supply Dispatch'!$G$55 -> 0 | AS116: ='Demand and Supply Dispatch'!$G$55 -> 0 | AT116: ='Demand and Supply Dispatch'!$G$55 -> 0 | AU116: ='Demand and Supply Dispatch'!$G$55 -> 0
D117: Diesel Cost | E117: USD | F117: =Diesel!$F$15 -> 240.45 | H117: =$F$117*H116 -> 0 | I117: =$F$117*I116 -> 0 | J117: 0 | K117: 0 | L117: 0 | M117: 0 | N117: 0 | O117: 0 | P117: 0 | Q117: 0 | R117: 0 | S117: 0 | T117: 0 | U117: 0 | V117: 0 | W117: 0 | X117: 0 | Y117: 0 | Z117: 0 | AA117: 0 | AB117: 0 | AC117: 0 | AD117: 0 | AE117: 0 | AF117: 0 | AG117: 0 | AH117: 0 | AI117: 0 | AJ117: 0 | AK117: 0 | AL117: 0 | AM117: 0 | AN117: 0 | AO117: 0 | AP117: 0 | AQ117: 0 | AR117: 0 | AS117: 0 | AT117: 0 | AU117: 0
D119: Solar Capacity | E119: kW | F119: =F23 -> 29 | H119: =$F119*H86 -> 29 | I119: =$F119*I86 -> 29 | J119: 29 | K119: 29 | L119: 29 | M119: 29 | N119: 29 | O119: 29 | P119: 29 | Q119: 29 | R119: 0 | S119: 0 | T119: 0 | U119: 0 | V119: 0 | W119: 0 | X119: 0 | Y119: 0 | Z119: 0 | AA119: 0 | AB119: 0 | AC119: 0 | AD119: 0 | AE119: 0 | AF119: 0 | AG119: 0 | AH119: 0 | AI119: 0 | AJ119: 0 | AK119: 0 | AL119: 0 | AM119: 0 | AN119: 0 | AO119: 0 | AP119: 0 | AQ119: 0 | AR119: 0 | AS119: 0 | AT119: 0 | AU119: 0
D120: Battery Capacity | E120: kW | F120: =F41 -> 57 | H120: =$F120*H87 -> 57 | I120: =$F120*I87 -> 57 | J120: 57 | K120: 57 | L120: 57 | M120: 57 | N120: 57 | O120: 57 | P120: 57 | Q120: 57 | R120: 0 | S120: 0 | T120: 0 | U120: 0 | V120: 0 | W120: 0 | X120: 0 | Y120: 0 | Z120: 0 | AA120: 0 | AB120: 0 | AC120: 0 | AD120: 0 | AE120: 0 | AF120: 0 | AG120: 0 | AH120: 0 | AI120: 0 | AJ120: 0 | AK120: 0 | AL120: 0 | AM120: 0 | AN120: 0 | AO120: 0 | AP120: 0 | AQ120: 0 | AR120: 0 | AS120: 0 | AT120: 0 | AU120: 0
D121: Hydro Capacity | E121: kW | F121: =F24 -> 0 | H121: =$F121*H85 -> 0 | I121: =$F121*I85 -> 0 | J121: 0 | K121: 0 | L121: 0 | M121: 0 | N121: 0 | O121: 0 | P121: 0 | Q121: 0 | R121: 0 | S121: 0 | T121: 0 | U121: 0 | V121: 0 | W121: 0 | X121: 0 | Y121: 0 | Z121: 0 | AA121: 0 | AB121: 0 | AC121: 0 | AD121: 0 | AE121: 0 | AF121: 0 | AG121: 0 | AH121: 0 | AI121: 0 | AJ121: 0 | AK121: 0 | AL121: 0 | AM121: 0 | AN121: 0 | AO121: 0 | AP121: 0 | AQ121: 0 | AR121: 0 | AS121: 0 | AT121: 0 | AU121: 0
D122: Diesel Capacity | E122: kW | F122: =F25 -> 0 | H122: =$F122*H88 -> 0 | I122: =$F122*I88 -> 0 | J122: 0 | K122: 0 | L122: 0 | M122: 0 | N122: 0 | O122: 0 | P122: 0 | Q122: 0 | R122: 0 | S122: 0 | T122: 0 | U122: 0 | V122: 0 | W122: 0 | X122: 0 | Y122: 0 | Z122: 0 | AA122: 0 | AB122: 0 | AC122: 0 | AD122: 0 | AE122: 0 | AF122: 0 | AG122: 0 | AH122: 0 | AI122: 0 | AJ122: 0 | AK122: 0 | AL122: 0 | AM122: 0 | AN122: 0 | AO122: 0 | AP122: 0 | AQ122: 0 | AR122: 0 | AS122: 0 | AT122: 0 | AU122: 0
D125: O&M Cost - Solar | E125: USD | F125: =F64 -> 10 | H125: =$F125*H119 -> 290 | I125: =$F125*I119 -> 290 | J125: 290 | K125: 290 | L125: 290 | M125: 290 | N125: 290 | O125: 290 | P125: 290 | Q125: 290 | R125: 0 | S125: 0 | T125: 0 | U125: 0 | V125: 0 | W125: 0 | X125: 0 | Y125: 0 | Z125: 0 | AA125: 0 | AB125: 0 | AC125: 0 | AD125: 0 | AE125: 0 | AF125: 0 | AG125: 0 | AH125: 0 | AI125: 0 | AJ125: 0 | AK125: 0 | AL125: 0 | AM125: 0 | AN125: 0 | AO125: 0 | AP125: 0 | AQ125: 0 | AR125: 0 | AS125: 0 | AT125: 0 | AU125: 0
D126: O&M Cost - Battery | E126: USD | F126: =F65 -> 0.2 | H126: =$F126*H120 -> 11.4 | I126: 11.4 | J126: 11.4 | K126: 11.4 | L126: 11.4 | M126: 11.4 | N126: 11.4 | O126: 11.4 | P126: 11.4 | Q126: 11.4 | R126: 0 | S126: 0 | T126: 0 | U126: 0 | V126: 0 | W126: 0 | X126: 0 | Y126: 0 | Z126: 0 | AA126: 0 | AB126: 0 | AC126: 0 | AD126: 0 | AE126: 0 | AF126: 0 | AG126: 0 | AH126: 0 | AI126: 0 | AJ126: 0 | AK126: 0 | AL126: 0 | AM126: 0 | AN126: 0 | AO126: 0 | AP126: 0 | AQ126: 0 | AR126: 0 | AS126: 0 | AT126: 0 | AU126: 0
D127: O&M Cost - Hydro | E127: USD | F127: =Hydro!F26 -> 10 | H127: =$F127*H121 -> 0 | I127: 0 | J127: 0 | K127: 0 | L127: 0 | M127: 0 | N127: 0 | O127: 0 | P127: 0 | Q127: 0 | R127: 0 | S127: 0 | T127: 0 | U127: 0 | V127: 0 | W127: 0 | X127: 0 | Y127: 0 | Z127: 0 | AA127: 0 | AB127: 0 | AC127: 0 | AD127: 0 | AE127: 0 | AF127: 0 | AG127: 0 | AH127: 0 | AI127: 0 | AJ127: 0 | AK127: 0 | AL127: 0 | AM127: 0 | AN127: 0 | AO127: 0 | AP127: 0 | AQ127: 0 | AR127: 0 | AS127: 0 | AT127: 0 | AU127: 0
D128: O&M Cost - Diesel | E128: USD | F128: =Diesel!F21 -> 15 | H128: =$F128*H122 -> 0 | I128: 0 | J128: 0 | K128: 0 | L128: 0 | M128: 0 | N128: 0 | O128: 0 | P128: 0 | Q128: 0 | R128: 0 | S128: 0 | T128: 0 | U128: 0 | V128: 0 | W128: 0 | X128: 0 | Y128: 0 | Z128: 0 | AA128: 0 | AB128: 0 | AC128: 0 | AD128: 0 | AE128: 0 | AF128: 0 | AG128: 0 | AH128: 0 | AI128: 0 | AJ128: 0 | AK128: 0 | AL128: 0 | AM128: 0 | AN128: 0 | AO128: 0 | AP128: 0 | AQ128: 0 | AR128: 0 | AS128: 0 | AT128: 0 | AU128: 0
D130: EBITDA | E130: USD | H130: =H114-H125-H126-H117-H127-H128 -> 3424.598494 | I130: =I114-I125-I126-I117-I127-I128 -> 3499.118464 | J130: 3575.128833 | K130: 3652.65941 | L130: 3731.740598 | M130: 3812.40341 | N130: 3894.679478 | O130: 3978.601067 | P130: 4064.201089 | Q130: 4151.513111 | R130: 4541.971373 | S130: 4632.8108 | T130: 4725.467016 | U130: 4819.976357 | V130: 4916.375884 | W130: 5014.703401 | X130: 5114.997469 | Y130: 5217.297419 | Z130: 5321.643367 | AA130: 5428.076234 | AB130: 5536.637759 | AC130: 5647.370514 | AD130: 5760.317925 | AE130: 5875.524283 | AF130: 5993.034769 | AG130: 6112.895464 | AH130: 6235.153373 | AI130: 6359.856441 | AJ130: 6487.05357 | AK130: 6616.794641 | AL130: 0 | AM130: 0 | AN130: 0 | AO130: 0 | AP130: 0 | AQ130: 0 | AR130: 0 | AS130: 0 | AT130: 0 | AU130: 0
D132: Capital Expenditure | G132: =F105 -> 34578.42105
D134: Cash Flow | G134: =G130-G132 -> -34578.42105 | H134: 3424.598494 | I134: 3499.118464 | J134: 3575.128833 | K134: 3652.65941 | L134: 3731.740598 | M134: 3812.40341 | N134: 3894.679478 | O134: 3978.601067 | P134: 4064.201089 | Q134: 4151.513111 | R134: 4541.971373 | S134: 4632.8108 | T134: 4725.467016 | U134: 4819.976357 | V134: 4916.375884 | W134: 5014.703401 | X134: 5114.997469 | Y134: 5217.297419 | Z134: 5321.643367 | AA134: 5428.076234 | AB134: 5536.637759 | AC134: 5647.370514 | AD134: 5760.317925 | AE134: 5875.524283 | AF134: 5993.034769 | AG134: 6112.895464 | AH134: 6235.153373 | AI134: 6359.856441 | AJ134: 6487.05357 | AK134: 6616.794641 | AL134: =AL130-AL132 -> 0 | AM134: 0 | AN134: 0 | AO134: 0 | AP134: 0 | AQ134: 0 | AR134: 0 | AS134: 0 | AT134: 0 | AU134: 0
D135: IRR | E135: =IRR(134:134) -> 0.115635177
D136: NPV | E136: =F73 -> 0.13 | F136: =NPV(E136,134:134) -> -3459.94672
D137: CCR | E137: % | F137: =H130 -> 3424.598494 | G137: =G132 -> 34578.42105 | H137: =F137/G137 -> 0.09903860238 | I137: =PMT(E136,F4,-1) -> 0.1334106503
A140: Comparison with Kerosene Cost
B141: Liters per kWh | E141: L/kWh | F141: =F79 -> 0.09583395389 | H141: =$F$141 -> 0.09583395389 | I141: =$F$141 -> 0.09583395389 | J141: 0.09583395389 | K141: 0.09583395389 | L141: 0.09583395389 | M141: 0.09583395389 | N141: 0.09583395389 | O141: 0.09583395389 | P141: 0.09583395389 | Q141: 0.09583395389 | R141: 0.09583395389 | S141: 0.09583395389 | T141: 0.09583395389 | U141: 0.09583395389 | V141: 0.09583395389 | W141: 0.09583395389 | X141: 0.09583395389 | Y141: 0.09583395389 | Z141: 0.09583395389 | AA141: 0.09583395389 | AB141: 0.09583395389 | AC141: 0.09583395389 | AD141: 0.09583395389 | AE141: 0.09583395389 | AF141: 0.09583395389 | AG141: 0.09583395389 | AH141: 0.09583395389 | AI141: 0.09583395389 | AJ141: 0.09583395389 | AK141: 0.09583395389 | AL141: 0.09583395389 | AM141: 0.09583395389 | AN141: 0.09583395389 | AO141: 0.09583395389 | AP141: 0.09583395389 | AQ141: 0.09583395389 | AR141: 0.09583395389 | AS141: 0.09583395389 | AT141: 0.09583395389 | AU141: 0.09583395389
B142: Total Liters | E142: Litre | H142: =H141*H92 -> 2269.839658 | I142: 2269.839658 | J142: 2269.839658 | K142: 2269.839658 | L142: 2269.839658 | M142: 2269.839658 | N142: 2269.839658 | O142: 2269.839658 | P142: 2269.839658 | Q142: 2269.839658 | R142: 2269.839658 | S142: 2269.839658 | T142: 2269.839658 | U142: 2269.839658 | V142: 2269.839658 | W142: 2269.839658 | X142: 2269.839658 | Y142: 2269.839658 | Z142: 2269.839658 | AA142: 2269.839658 | AB142: 2269.839658 | AC142: 2269.839658 | AD142: 2269.839658 | AE142: 2269.839658 | AF142: 2269.839658 | AG142: 2269.839658 | AH142: 2269.839658 | AI142: 2269.839658 | AJ142: 2269.839658 | AK142: 2269.839658 | AL142: 0 | AM142: 0 | AN142: 0 | AO142: 0 | AP142: 0 | AQ142: 0 | AR142: 0 | AS142: 0 | AT142: 0 | AU142: 0
B144: Cost per Liter | E144: USD/Litre | F144: =F80 -> 1.115789474 | H144: =$F$144*H109 -> 1.138105263 | I144: 1.160867368 | J144: 1.184084716 | K144: 1.20776641 | L144: 1.231921738 | M144: 1.256560173 | N144: 1.281691377 | O144: 1.307325204 | P144: 1.333471708 | Q144: 1.360141142 | R144: 1.387343965 | S144: 1.415090844 | T144: 1.443392661 | U144: 1.472260515 | V144: 1.501705725 | W144: 1.531739839 | X144: 1.562374636 | Y144: 1.593622129 | Z144: 1.625494571 | AA144: 1.658004463 | AB144: 1.691164552 | AC144: 1.724987843 | AD144: 1.7594876 | AE144: 1.794677352 | AF144: 1.830570899 | AG144: 1.867182317 | AH144: 1.904525963 | AI144: 1.942616483 | AJ144: 1.981468812 | AK144: 2.021098189 | AL144: 2.061520152 | AM144: 2.102750555 | AN144: 2.144805567 | AO144: 2.187701678 | AP144: 2.231455711 | AQ144: 2.276084826 | AR144: 2.321606522 | AS144: 2.368038653 | AT144: 2.415399426 | AU144: 2.463707414
B145: Total | E145: USD | H145: =H144*H142 -> 2583.316461 | I145: =I144*I142 -> 2634.98279 | J145: 2687.682446 | K145: 2741.436095 | L145: 2796.264817 | M145: 2852.190113 | N145: 2909.233916 | O145: 2967.418594 | P145: 3026.766966 | Q145: 3087.302305 | R145: 3149.048351 | S145: 3212.029318 | T145: 3276.269905 | U145: 3341.795303 | V145: 3408.631209 | W145: 3476.803833 | X145: 3546.33991 | Y145: 3617.266708 | Z145: 3689.612042 | AA145: 3763.404283 | AB145: 3838.672368 | AC145: 3915.445816 | AD145: 3993.754732 | AE145: 4073.629827 | AF145: 4155.102423 | AG145: 4238.204472 | AH145: 4322.968561 | AI145: 4409.427932 | AJ145: 4497.616491 | AK145: 4587.568821 | AL145: =AL144*AL142 -> 0 | AM145: 0 | AN145: 0 | AO145: 0 | AP145: 0 | AQ145: 0 | AR145: 0 | AS145: 0 | AT145: 0 | AU145: 0
G149: Cost of Mini Grid | H149: =H114 -> 3725.998494
G150: Cost of Kerosene | H150: =H145 -> 2583.316461
G152: Cost Savings Percent -- | H152: =H149/H150 -> 1.442331418

Sheet Kerosene
A2: Conversions
B3: Gallons per kWh | E3: G/kWh | F3: 0.0253164556
B4: kWh/Gallon | E4: kWh/G | F4: =1/F3 -> 39.50000015
B6: US Gallon/Litre | E6: G/L | F6: 0.26417
B7: Litre/Galon | E7: L/G | F7: =1/F6 -> 3.785441193
B9: Litres/kWh | D9: G/kWh x L/G | F9: =F3*F7 -> 0.09583395389
B10: kWh/Litre | D10: kWh/G x G/L | F10: =F4*F6 -> 10.43471504
B12: The average retail price per liter kerosene for a remote household costs FRW 1,070.
A14: Cost of Kerosene
B15: Cost/Litre | D15: FRW/L | F15: 1060 | G15: cost litre | I15: 1070 | J15: base cost litre
B16: Conversion | D16: FRW/USD | F16: ='Financial Model'!F13 -> 950
B17: Cost/Litre | D17: USD/L | F17: =F15/F16 -> 1.115789474
B18: Cost/kWh | D18: USD/L x L/KWH | F18: =F17*F9 -> 0.106930517
B21: Region | F21: Cent/G | G21: USD/G | H21: G/L | I21: USD/L
B22: New York Statewide | F22: 363 | G22: =F22/100 -> 3.63 | H22: =F6 -> 0.26417 | I22: =G22*H22 -> 0.9589371
B23: Middle Hudson Region | F23: 375.9 | G23: 3.759 | H23: =H22 -> 0.26417 | I23: 0.99301503
B24: Capital District Region | F24: 335.2 | G24: 3.352 | H24: =H23 -> 0.26417 | I24: 0.88549784
B25: North Country Region | F25: 371.6 | G25: 3.716 | H25: =H24 -> 0.26417 | I25: 0.98165572
B26: Central Region | F26: 344.5 | G26: 3.445 | H26: =H25 -> 0.26417 | I26: 0.91006565
B27: Western Region | F27: 383.5 | G27: 3.835 | H27: =H26 -> 0.26417 | I27: 1.01309195

Sheet Sample Prices
B2: Total Wh | D2: =30*10 -> 300 | H2: Total kW | K2: 7 | L2: =K2 -> 7 | P2: Total kW | R2: 5 | S2: 5 | V2: Total kW | W2: 3 | X2: 3 | AE2: Total kW | AG2: 2 | AH2: 5
B3: Cost | D3: 399 | H3: Cost | K3: 4800 | L3: 7500 | P3: Cost | R3: 4000 | S3: 4500 | V3: Cost | W3: =W6*W2 -> 900 | X3: =X6*X2 -> 2370 | AE3: Cost | AG3: 2500 | AH3: 4500
B4: Cost/Wh | D4: =D3/D2 -> 1.33 | H4: Hrs | K4: 5 | L4: =K4 -> 5 | P4: Hrs | R4: 5 | S4: 5 | V4: Hrs | W4: 1 | X4: 1 | AE4: Hrs | AG4: 5 | AH4: 5
B5: Cost/kWh | D5: =D4*1000 -> 1330 | H5: kWh | K5: =K2*K4 -> 35 | L5: =L2*L4 -> 35 | P5: kWh | R5: =R2*R4 -> 25 | S5: =S2*S4 -> 25 | V5: kWh | W5: =W2*W4 -> 3 | X5: =X2*X4 -> 3 | AE5: kWh | AG5: =AG4*AG2 -> 10 | AH5: =AH4*AH2 -> 25
H6: Cost/kW | K6: =K3/K2 -> 685.7142857 | L6: =L3/L2 -> 1071.428571 | P6: Cost/kW | R6: =R3/R2 -> 800 | S6: =S3/S2 -> 900 | V6: Cost/kW | W6: 300 | X6: 790 | AE6: Cost/kW | AG6: =AG3/AG2 -> 1250 | AH6: =AH3/AH2 -> 900
B7: Watt | D7: 30 | H7: Cost/kWh | K7: =K3/K5 -> 137.1428571 | L7: =L3/L5 -> 214.2857143 | P7: Cost/kWh | R7: =R3/R5 -> 160 | S7: =S3/S5 -> 180 | V7: Cost/kWh | W7: =W6/W5 -> 100 | X7: =X6/X5 -> 263.3333333 | AE7: Cost/kWh | AG7: =AG3/AG5 -> 250 | AH7: =AH3/AH5 -> 180
B8: Cost | D8: =D3 -> 399
B9: Cost/Watt | D9: =D8/D7 -> 13.3
B10: Cost/kW | D10: =D9*1000 -> 13300

Sheet Backup
